Cogmind - Beta 15 @@@ ROGUE MODE // 2025.08.23 @ 17:25:53 Player: LightKnight Result: Self-destructed Performance ------------- Evolutions (9) 4500 Regions Visited (35) 7000 Robots Destroyed (415) 2075 Value Destroyed (18080) 18080 Prototype IDs (101) 2020 Alien Tech Used (4) 800 Bonus (19139) 19139 TOTAL SCORE: 53614 Bonus ------- High Alert Combat Kills 4726 Follower Combat Kills 1616 Entered Garrisons 600 Aligned with FarCom 300 Acquired ECA 300 Met Zhirov 300 Met Warlord at Base 500 MAIN.C Attacked Warlord 500 Found Hidden Lab 3000 Met Warlord at Research 2000 Pursued by Intercept 1000 Met MAIN.C 5000 Friendly Fire -703 Cogmind --------- Core Integrity 1150/1600 Matter 241/300 Energy 295/295 System Corruption 7% Temperature Cool (0) Movement Flying (92) Ox1 Location -1/Command Parts ------- > --- POWER (2) -------- Fusion Reactor > --- PROPULSION (8) --- Cooled Nuclear Pulse Thruster Improved Diametric Drive Improved Diametric Drive Improved Diametric Drive Improved Diametric Drive Improved Diametric Drive > --- UTILITY (11) ----- Experimental Power Amplifier Enhanced Optical Array Improved Melee Analysis Suite Advanced Point Defense System Improved Hacking Suite Advanced Hacking Suite Improved System Shield Advanced System Shield > --- WEAPON (4) ------- Advanced Variable Charge Gun Vortex Cannon > --- INVENTORY (5) ---- Micro Fission Core Light Particle Reactor Advanced Transmission Jammer Advanced Component Analysis Suite Fusion Bomb Launcher Peak State ------------ > --- POWER ------------ Fusion Reactor Micro Antimatter Reactor > --- PROPULSION ------- Cooled Nuclear Pulse Thruster Cooled Nuclear Pulse Thruster Cooled Nuclear Pulse Thruster Improved Diametric Drive Improved Diametric Drive Improved Diametric Drive Improved Diametric Drive Improved Diametric Drive > --- UTILITY ---------- Experimental Power Amplifier Large Storage Unit Gravity Neutralizer Triangulator Enhanced Optical Array Experimental Cloaking Device Improved Hacking Suite Advanced Hacking Suite Deep Network Scanner Improved System Shield Improved System Shield > --- WEAPON ----------- Field Lobotomy Kit Kinetic Spear > --- INVENTORY -------- Micro Fission Core Light Particle Reactor Improved Diametric Drive Improved Diametric Drive Improved Q-thruster Advanced Transmission Jammer Hacking Suite Advanced Component Analysis Suite Transdimensional Reconstructor Advanced Variable Charge Gun Vortex Cannon Warp Cannon Fusion Bomb Launcher Makeshift Sword [Rating: 176] Favorites ----------- Power Deuterium Engine Engine Deuterium Engine Power Core Light Nuclear Core Reactor Particle Reactor Propulsion Light Treads Treads Light Treads Leg Aluminum Leg Wheel Wheel Flight Unit Cooled Nuclear Pulse Thruster Utility High-capacity Storage Unit Device Matter Filter Storage High-capacity Storage Unit Processor Enhanced Optical Array Hackware Improved System Shield Protection Heavy Armor Plating Weapon Advanced Assault Cannon Energy Gun Particle Gun Energy Cannon Beam Cannon Ballistic Gun KE Penetrator Ballistic Cannon Advanced Assault Cannon Launcher Improved Grenade Launcher Special Weapon Field Lobotomy Kit Slashing Weapon Makeshift Sword Piercing Weapon Kinetic Spear Special Melee Weapon Datajack Build | -11 -10 -10 -10 -9 -8 -8 -8 -7 -7 -7 -7 -7 -6 -6 -6 -6 -6 -6 -6 -5 -5 -5 -5 -4 -4 -4 -4 -4 -3 -3 -3 -3 -2 -1 -1 ------- Run | Yrd Mat Min Exi Min Mat Gar Mat Fac Was Fac Low Low Fac Gar Fac Gar Fac Low Low Fac Upp Upp War Pro Fac Upp Upp Zhi Pro Res Arm Lab Res Acc Com Slots Evolved 18 | . . . . . 4 . . 2 . . . . 2 . . . . . . 2 . . . . 2 . . . . 2 . . 2 2 . Power 1 | . . . . . . . . . . . . . . . . . . . . . . . . . 1 . . . . . . . . . . Propulsion 6 | . . . . . 2 . . . . . . . . . . . . . . . . . . . 1 . . . . 1 . . . 2 . Utility 9 | . . . . . 1 . . 2 . . . . 1 . . . . . . 2 . . . . . . . . . 1 . . 2 . . Weapon 2 | . . . . . 1 . . . . . . . 1 . . . . . . . . . . . . . . . . . . . . . . Parts Attached 206 | . 10 2 3 1 23 7 4 9 3 16 2 . 2 16 13 9 2 3 . 17 2 1 5 5 10 2 1 6 1 9 3 2 7 5 5 Power 20 | . 2 1 . . 2 . 1 1 1 2 . . 1 1 1 1 . . . 1 . . . 2 . 1 . 1 . 1 . . . . . Engine 9 | . 2 . . . 2 . 1 1 . 1 . . 1 . . . . . . . . . . 1 . . . . . . . . . . . Core 3 | . . 1 . . . . . . . . . . . . . . . . . . . . . 1 . 1 . . . . . . . . . Reactor 8 | . . . . . . . . . 1 1 . . . 1 1 1 . . . 1 . . . . . . . 1 . 1 . . . . . Propulsion 47 | . 2 . 1 . 6 2 2 1 1 2 . . . 4 4 2 . . . 4 . . 1 3 2 . . 3 . 2 . . 1 3 1 Treads 29 | . 2 . 1 . 6 2 2 1 1 2 . . . 4 3 2 . . . 3 . . . . . . . . . . . . . . . Leg . | . . . . . . . . . . . . . . . . . . . . . . . . . . . . . . . . . . . . Wheel 2 | . . . . . . . . . . . . . . . 1 . . . . 1 . . . . . . . . . . . . . . . Hover . | . . . . . . . . . . . . . . . . . . . . . . . . . . . . . . . . . . . . Flight 16 | . . . . . . . . . . . . . . . . . . . . . . . 1 3 2 . . 3 . 2 . . 1 3 1 Utility 84 | . 3 . 1 . 6 3 1 5 . 7 2 . . 6 5 3 1 1 . 7 1 . 2 . 8 1 1 2 1 5 1 1 4 2 4 Device 49 | . 1 . 1 . 4 3 1 4 . 2 1 . . 3 3 2 . 1 . 6 . . 2 . 5 . 1 1 . 4 1 . 2 . 1 Storage 4 | . 1 . . . 1 . . . . . . . . 1 . . . . . . . . . . . . . . . 1 . . . . . Processor 11 | . . . . . . . . 1 . 1 1 . . 1 1 1 1 . . . 1 . . . 2 . . . . . . . . . 1 Hackware 12 | . . . . . . . . . . 2 . . . . . . . . . 1 . . . . 1 1 . . 1 . . . 2 2 2 Protection 8 | . 1 . . . 1 . . . . 2 . . . 1 1 . . . . . . . . . . . . 1 . . . 1 . . . Artifact . | . . . . . . . . . . . . . . . . . . . . . . . . . . . . . . . . . . . . Weapon 55 | . 3 1 1 1 9 2 . 2 1 5 . . 1 5 3 3 1 2 . 5 1 1 2 . . . . . . 1 2 1 2 . . Energy Gun 6 | . 1 . . . 1 . . . . 1 . . . . 1 . . . . 1 . . . . . . . . . 1 . . . . . Energy Cannon 8 | . 1 . . . 2 . . . . . . . . . 1 . . . . 1 . . 1 . . . . . . . 1 1 . . . Ballistic Gun 4 | . 1 . . . . . . . . . . . . . . 1 . . . . 1 . . . . . . . . . 1 . . . . Ballistic Cannon 27 | . . 1 . . 6 1 . 1 . 4 . . . 5 1 2 1 2 . 3 . . . . . . . . . . . . . . . Launcher 5 | . . . . 1 . 1 . 1 . . . . 1 . . . . . . . . . . . . . . . . . . . 1 . . Special Weapon 2 | . . . . . . . . . 1 . . . . . . . . . . . . . 1 . . . . . . . . . . . . Impact Weapon . | . . . . . . . . . . . . . . . . . . . . . . . . . . . . . . . . . . . . Slashing Weapon 1 | . . . . . . . . . . . . . . . . . . . . . . 1 . . . . . . . . . . . . . Piercing Weapon 1 | . . . . . . . . . . . . . . . . . . . . . . . . . . . . . . . . . 1 . . Special Melee Weapon 1 | . . . 1 . . . . . . . . . . . . . . . . . . . . . . . . . . . . . . . . Unidentified Prototypes 35 | . . . 1 . 2 . . 2 . 1 . . 1 . 7 . . . . 2 . . 5 . . . . 5 . 3 1 4 1 . . Parts Lost 46 | . . . . 1 1 . . 1 . 5 . . . 2 4 3 1 . . 19 . . . . . . . . . . . . . 5 4 Power 5 | . . . . . . . . . . 2 . . . . . 1 . . . 2 . . . . . . . . . . . . . . . Propulsion 14 | . . . . . 1 . . 1 . . . . . 1 1 . . . . 7 . . . . . . . . . . . . . 1 2 Utility 20 | . . . . 1 . . . . . 3 . . . 1 2 1 1 . . 5 . . . . . . . . . . . . . 4 2 Weapon 7 | . . . . . . . . . . . . . . . 1 1 . . . 5 . . . . . . . . . . . . . . . Highest Loss Streak 6 | . . . . 1 1 . . 1 . 2 . . . 1 2 1 1 . . 6 . . . . . . . . . . . . . 4 4 To Critical Strikes 1 | . . . . . . . . . . . . . . . . . . . . 1 . . . . . . . . . . . . . . . Average Backups 16 | . 10 14 14 15 17 18 19 18 19 18 16 17 17 19 19 19 18 20 20 16 3 4 5 4 4 4 5 5 5 5 14 14 13 14 10 Power 1 | . 1 1 1 1 1 1 1 1 1 . . 1 1 1 1 . . 1 1 1 . 1 1 1 1 1 1 1 . . 1 1 1 1 2 Propulsion 3 | . 3 3 3 3 4 4 4 3 3 3 3 3 3 3 3 5 6 6 6 4 . . . . . 1 1 1 1 . 3 2 2 2 1 Utility 4 | . 1 2 2 3 4 7 8 7 8 5 3 3 4 3 5 4 5 5 5 3 . 1 1 1 . 1 1 . . 1 2 2 2 2 2 Weapon 6 | . 3 7 7 6 5 5 5 5 6 7 8 8 7 8 7 6 5 7 7 5 1 1 1 1 1 1 1 1 1 1 6 7 6 5 3 Tool/Special . | . . . . . . . . . . . . . . . . . . . . . . . . . . . . . . . . . . . . Unused Backups 55 | . 8 5 1 . 9 1 . . 1 1 . . . 6 3 . 1 . . 4 1 1 1 . 1 . . 1 . . . 1 7 . 2 Power 11 | . 2 1 . . 1 . . . 1 . . . . 3 1 . . . . 1 . . . . . . . . . . . . . . 1 Propulsion 9 | . 4 . . . 1 . . . . . . . . . 1 . . . . . 1 . . . . . . . . . . . 1 . 1 Utility 13 | . 1 1 . . 3 1 . . . 1 . . . 1 1 . . . . . . 1 . . . . . 1 . . . . 2 . . Weapon 21 | . 1 3 1 . 4 . . . . . . . . 2 . . 1 . . 2 . . 1 . 1 . . . . . . 1 4 . . Tool/Special 1 | . . . . . . . . . . . . . . . . . . . . 1 . . . . . . . . . . . . . . . Average Slot Usage (%) 89 | . 99 100 100 95 96 100 100 99 96 91 91 92 86 83 85 81 85 85 86 83 18 17 27 57 72 83 84 84 84 83 85 84 87 83 79 Engine 3 | . 14 2 . . 7 9 9 7 3 . 7 7 6 4 . . . . . . . . 1 3 5 5 5 3 . . . . . . . Core 1 | . . 12 14 14 1 . . . . . . . . . . . . . . . . . . 1 . 4 5 5 5 1 . . . . . Reactor 2 | . . . . . . . . . 3 6 . . . 1 6 6 6 6 6 4 . . . . . . . 1 5 7 9 9 8 7 4 Treads 21 | . 26 28 28 28 35 36 36 30 26 22 23 23 20 19 19 14 13 13 13 12 . . . . . . . . . . . . . . . Flight 2 | . . . . . . . . . . . . . . . . . . . . . . . 1 17 26 26 26 26 26 28 28 28 26 31 28 Device 16 | . 6 14 14 10 14 18 18 22 23 18 14 15 13 11 15 19 19 20 20 23 6 5 8 16 23 26 26 26 21 25 23 22 21 15 11 Storage 7 | . 14 14 14 14 9 9 9 7 7 7 7 7 6 6 6 6 6 6 6 5 . . . . . . . . . . 4 4 4 4 3 Processor 6 | . . . . . . . . 7 7 7 14 15 6 6 8 13 13 13 13 10 10 11 11 11 9 10 10 10 10 5 4 4 4 4 7 Protection 1 | . 7 . . . 1 . . . . 3 . . 5 4 3 . . . . . . . . . . . . . . . . . . . . Energy Cannon 1 | . 6 14 1 11 9 . . . . . . . . . . . . . . . . . . . . . . . . . . . . . . Ballistic Cannon 18 | . . 12 14 2 14 26 26 23 20 22 23 23 26 25 23 19 20 23 26 21 . . . . . . . . . . . . . . . Peak Build Rating 176 | . 11 14 19 17 34 38 37 47 58 60 60 60 65 102 107 114 112 115 115 126 26 23 57 62 85 94 91 109 109 132 138 141 163 176 161 Average Rating 65 | . 9 12 14 15 28 35 36 45 53 58 59 59 63 69 96 109 109 114 113 106 20 19 31 59 78 90 90 102 107 115 129 129 150 158 146 On Entrance 68 | 6 6 11 14 15 13 34 35 37 47 58 54 60 60 64 94 105 109 112 115 111 14 19 19 46 62 85 91 91 109 108 127 129 125 152 129 Naked Turns . | . . . . . . . . . . . . . . . . . . . . . . . . . . . . . . . . . . . . Heaviest Build 127 | 11 34 32 32 35 72 82 72 79 83 94 88 74 109 127 111 113 94 90 90 103 4 3 8 19 23 27 27 27 26 50 52 50 52 49 49 Greatest Support 120 | 20 40 40 40 40 80 80 80 83 113 113 113 113 113 116 118 120 120 120 120 120 3 3 8 20 27 27 27 33 33 52 52 52 52 65 58 Greatest Overweight (x) 9 | . . . . . 1 1 . . . . . . . 1 1 1 . . . 9 1 . . . . . . . . . . . 1 1 1 Average Overweight (x) . | . . . . . . . . . . . . . . . . . . . . . . . . . . . . . . . . . . . . Largest Inventory Capacity 20 | . 15 15 15 15 20 20 20 20 20 20 20 20 20 20 20 20 20 20 20 20 5 5 5 5 5 5 5 5 5 15 15 15 15 15 15 Average Capacity 18 | . 14 15 15 15 19 20 20 20 20 20 20 20 20 20 20 20 20 20 20 19 5 5 5 5 5 5 5 5 5 6 15 15 15 15 13 Most Carried 20 | . 14 15 15 15 20 20 20 20 20 20 18 18 19 20 20 20 20 20 20 20 5 5 5 5 5 5 5 5 5 11 15 15 15 15 12 Average Carried 17 | . 10 14 14 15 18 19 19 19 19 19 17 18 17 19 19 19 18 20 20 16 4 4 4 4 4 4 5 4 5 5 14 14 13 13 10 Final Capacity 20 | 8 15 15 15 15 20 20 20 20 20 20 20 20 20 20 20 20 20 20 20 5 5 5 5 5 5 5 5 5 5 15 15 15 15 15 5 Final Carried 20 | 6 14 15 15 15 20 20 20 20 20 16 18 18 19 20 20 18 20 20 20 5 5 5 5 5 5 5 5 5 5 11 14 15 15 12 5 Class Distribution -------------------- 34% | Skirmisher 23% | Tank 12% | Gunner 12% | Mutant 3% | Scavenger-Skirmisher Dominant Class ---------------- Mutant | -10/Materials Mutant | -10/Mines Mutant | -10/Exiles Mutant | -9/Mines Scavenger-Skirmisher | -8/Materials Skirmisher | -8/Garrison Skirmisher | -8/Materials Skirmisher | -7/Factory Skirmisher | -7/Waste Tank | -7/Factory Skirmisher | -7/Lower Caves Skirmisher | -7/Lower Caves Tank | -6/Factory Tank | -6/Garrison Tank | -6/Factory Gunner | -6/Garrison Commander-Gunner | -6/Factory Gunner | -6/Lower Caves Gunner | -6/Lower Caves Gunner | -5/Factory Scout | -5/Upper Caves Scout | -5/Upper Caves Scout | -5/Warlord Ninja | -4/Proximity Caves Infiltrator-Ninja | -4/Factory Infiltrator-Ninja | -4/Upper Caves Infiltrator-Ninja | -4/Upper Caves Infiltrator-Ninja | -4/Zhirov Hacker-Ninja | -3/Proximity Caves Hacker-Sprinter | -3/Research Hacker-Sprinter | -3/Armory Hacker-Sprinter | -3/Lab Wizard-Sprinter | -2/Research Wizard-Sprinter | -1/Access Wizard-Sprinter | -1/Command Resources | -11 -10 -10 -10 -9 -8 -8 -8 -7 -7 -7 -7 -7 -6 -6 -6 -6 -6 -6 -6 -5 -5 -5 -5 -4 -4 -4 -4 -4 -3 -3 -3 -3 -2 -1 -1 ----------- Run | Yrd Mat Min Exi Min Mat Gar Mat Fac Was Fac Low Low Fac Gar Fac Gar Fac Low Low Fac Upp Upp War Pro Fac Upp Upp Zhi Pro Res Arm Lab Res Acc Com Matter Collected 14829 | 200 175 44 . 197 679 437 913 676 96 987 478 92 96 887 2152 1550 919 384 129 2444 293 95 . 165 . 140 40 80 30 133 7 . 220 60 31 Remotely . | . . . . . . . . . . . . . . . . . . . . . . . . . . . . . . . . . . . . Salvage Created 11411 | . 447 254 . 141 1125 315 646 759 361 710 143 69 120 236 1300 720 823 212 70 1879 75 . . 119 . 60 . 220 . 133 22 . 298 98 56 Parts 579 | . 29 20 . 12 81 25 47 39 2 49 5 6 12 15 44 22 40 3 5 78 . . . 10 . 4 . 1 . 3 2 . 17 7 1 Haulers Intercepted 12 | . 2 . . . 3 . 2 1 . . . . . . 1 . . . . 1 . . . . . . . . . 1 . . 1 . . Recyclers Shooed 11 | . . 1 . . . . . 2 . . . . 2 . . . . . . 6 . . . . . . . . . . . . . . . Parts Field Recycled 131 | . . . . . . 28 . . . 9 . . 15 53 . 26 . . . . . . . . . . . . . . . . . . . Retrieved Matter 1421 | . . . . . . 277 . . . 122 . . 217 449 . 356 . . . . . . . . . . . . . . . . . . . Parts Self-Destructed 28 | . . . . . . . . . . . 7 6 . . . . . 1 5 . . . . 5 . 3 . 1 . . . . . . . Prevented 2 | . . . . . . . . . . . 1 . . . . . . . . . . . . . . . 1 . . . . . . . . Kills | -11 -10 -10 -10 -9 -8 -8 -8 -7 -7 -7 -7 -7 -6 -6 -6 -6 -6 -6 -6 -5 -5 -5 -5 -4 -4 -4 -4 -4 -3 -3 -3 -3 -2 -1 -1 ------- Run | Yrd Mat Min Exi Min Mat Gar Mat Fac Was Fac Low Low Fac Gar Fac Gar Fac Low Low Fac Upp Upp War Pro Fac Upp Upp Zhi Pro Res Arm Lab Res Acc Com Combat Hostiles Destroyed 317 | . 10 5 . 8 30 21 24 20 2 29 6 2 4 21 30 30 13 5 3 47 . . . 4 . 1 . . . . . . . 2 . Melee 7 | . . . . . . . . . . . . . . . . . . . . . . . . 4 . 1 . . . . . . . 2 . Guns 14 | . 8 . . 1 . . . . . . . . . . . 1 3 . . 1 . . . . . . . . . . . . . . . Cannons 252 | . 2 5 . 2 23 13 19 20 2 26 6 2 3 13 30 27 10 3 3 43 . . . . . . . . . . . . . . . AOE 43 | . . . . 5 7 8 5 . . 2 . . 1 8 . 2 . 2 . 3 . . . . . . . . . . . . . . . Classes Destroyed 22 | . 5 1 . 2 5 3 1 . 1 1 1 . . . 1 . . . . . . . . . . . . . . . . . . 1 . Worker 24 | . 1 . . . 2 . 3 2 . 1 . . 4 . 1 . 1 . . 7 . . . . . . . . . . . . 1 . 1 Builder 24 | . . . . . 1 . 4 2 . 3 . . 1 . . . 2 . . 11 . . . . . . . . . . . . . . . Tunneler 4 | . . 3 . 1 . . . . . . . . . . . . . . . . . . . . . . . . . . . . . . . Hauler 12 | . 2 . . . 3 . 2 1 . . . . . . 1 . . . . 1 . . . . . . . . . 1 . . 1 . . Recycler 8 | . . . . 1 . . . . . . . . . . 1 . 1 . . 4 . . . . . . . . . . . . 1 . . Minesweeper 2 | . . . . . . . . . . . 1 . . . . . . . . . . . . 1 . . . . . . . . . . . Mechanic 4 | . . . . . . . . . . . . . . . 2 . . . . 2 . . . . . . . . . . . . . . . Operator 7 | . . . . . 1 . 1 . . . . . . . . . 1 . . 2 . . . . . . . . . . 1 . 1 . . Watcher 10 | . 2 . . . 2 . 2 1 . . . . . . 1 . . . . . . . . . . . . . . 1 . . . . 1 Swarmer 66 | . 3 1 . 3 7 7 5 . . 6 2 . 3 11 1 4 . . . 9 . . . 4 . . . . . . . . . . . Cutter 1 | . . . . . . . . . . . . . . . . . . . . . . . . . . . . . . . . . . 1 . Grunt 122 | . 7 4 . . 9 8 12 14 . 4 4 . . 4 19 15 5 3 . 14 . . . . . . . . . . . . . . . Brawler 7 | . . . . . . 1 2 . . . . . . . 1 1 2 . . . . . . . . . . . . . . . . . . Duelist 7 | . . . . . 2 1 1 . . . . . . . . . 3 . . . . . . . . . . . . . . . . . . Protector 2 | . . . . . . . 1 . . . . . . . . . 1 . . . . . . . . . . . . . . . . . . Sentry 34 | . . . . . 11 . 3 2 . 5 . . . 3 1 6 3 . . . . . . . . . . . . . . . . . . Specialist 7 | . . . . . . 1 . . . . . . . 1 1 . . . . 4 . . . . . . . . . . . . . . . Hunter 28 | . . . . . 1 2 . . . 3 . 1 . 2 3 2 . 2 2 10 . . . . . . . . . . . . . . . Programmer 34 | . . . . . . 1 . 4 . 10 . 1 1 . 4 2 2 . 1 6 . . . . . 1 . . . . . . . 1 . Heavy 5 | . . . . . . . . . . 1 . . . . . . . . . 4 . . . . . . . . . . . . . . . Compactor 2 | . . . . . . . . . 2 . . . . . . . . . . . . . . . . . . . . . . . . . . Packrat 2 | . . . . . . . . . . . . . . . . . . 2 . . . . . . . . . . . . . . . . . Assembled 5 | . . . . 5 . . . . . . . . . . . . . . . . . . . . . . . . . . . . . . . Surgeon 1 | . . . . . . . . . . . . . . . . . 1 . . . . . . . . . . . . . . . . . . Wasp 1 | . . . . . . . . . . . . . . . 1 . . . . . . . . . . . . . . . . . . . . Thug 2 | . . 1 . 1 . . . . . . . . . . . . . . . . . . . . . . . . . . . . . . . Savage 1 | . . . . . . . . . . . . . . . . . 1 . . . . . . . . . . . . . . . . . . Best Kill Streak 15 | . 3 3 . 4 5 6 7 7 1 3 2 1 5 4 9 5 6 3 2 15 . . . 4 . 1 . . . 1 1 . 2 1 2 Combat Bots Only 9 | . 3 2 . 3 4 6 4 5 1 3 2 1 3 4 8 5 5 3 2 9 . . . 4 . 1 . . . . . . . 1 . Max Kills in Single Turn 4 | . 1 2 . 2 4 3 3 2 1 2 1 1 3 3 1 2 2 2 1 3 . . . 1 . 1 . . . 1 1 . 1 1 1 Gunslinging . | . . . . . . . . . . . . . . . . . . . . . . . . . . . . . . . . . . . . Exploded 3 | . . . . 2 3 3 2 . . 1 . . 1 3 . 1 . 2 . 2 . . . . . . . . . . . . . . . Melee 1 | . . . . . . . . . . . . . . . . . . . . . . . . 1 . 1 . . . . . . . 1 . Uniques/NPCs Destroyed . | . . . . . . . . . . . . . . . . . . . . . . . . . . . . . . . . . . . . Combat | -11 -10 -10 -10 -9 -8 -8 -8 -7 -7 -7 -7 -7 -6 -6 -6 -6 -6 -6 -6 -5 -5 -5 -5 -4 -4 -4 -4 -4 -3 -3 -3 -3 -2 -1 -1 -------- Run | Yrd Mat Min Exi Min Mat Gar Mat Fac Was Fac Low Low Fac Gar Fac Gar Fac Low Low Fac Upp Upp War Pro Fac Upp Upp Zhi Pro Res Arm Lab Res Acc Com Hostile Shots Fired 1611 | . 41 19 . 18 61 63 67 58 . 225 3 8 16 123 193 217 33 50 14 260 6 . 2 28 . 6 4 . . . . . 3 61 32 Missed 469 | . 9 7 . 3 26 16 27 22 . 79 . 2 8 26 43 58 18 11 4 58 2 . . 9 . 2 2 . . . . . 1 25 11 Intercepted 1 | . . . . . . . . . . . . . . . . . . . . . . . . . . . . . . . . . . . 1 Hits 1142 | . 32 12 . 15 35 47 40 36 . 146 3 6 8 97 150 159 15 39 10 202 4 . 2 19 . 4 2 . . . . . 2 36 21 Melee 8 | . . . . 2 . . . . . . . . . . . . . . . . . . . . . . . . . . . . . 6 . Projectile 1134 | . 32 12 . 13 35 47 40 36 . 146 3 6 8 97 150 159 15 39 10 202 4 . 2 19 . 4 2 . . . . . 2 30 21 AOE 1 | . . . . . . . . . . . . . . . . . . . . 1 . . . . . . . . . . . . . . . Critical Strikes 46 | . 1 . . . 4 2 2 1 . 5 . . . . 9 1 . 3 . 12 . . . 1 . . . . . . . . . 5 . Part Disruptions 7 | . . . . . . . . . . . . . . . . 1 . . . 1 . . . . . . . . . . . . . 1 4 Damage Taken 17560 | . 377 141 . 299 477 606 585 316 . 1745 44 45 208 1146 2581 1945 250 577 163 4041 90 . 36 216 . 78 39 . . . . . 36 850 669 Core 2244 | . 29 40 . 106 97 126 65 18 . 130 . . 14 64 157 113 10 25 . 631 90 . 36 83 . 41 22 . . . . . 36 213 98 Absorbed by Shields 664 | . . . . . . 49 . 116 . 120 . . . . . 177 25 . . 177 . . . . . . . . . . . . . . . Reduced by Siege Mode 292 | . . . . . . . . . . 6 9 . . 25 59 113 . 25 9 46 . . . . . . . . . . . . . . . Ignored by Resistances 54 | . . . . . . . . . . . . . . . . . . . . . . . . 54 . . . . . . . . . . . Regen/Repaired (Parts) 78 | . . . . . . . . . . . . . . . . . 68 . . . . . . . . . . . . . . . 10 . . Core Remaining (%) 68 | 100 . . . 30 . . 47 . . . . 78 . . . . . . 54 . . . . 16 . . . . 94 . . 100 97 . . Volleys Fired 836 | . 35 15 . 19 65 56 54 49 7 83 20 6 8 65 70 76 39 12 5 132 8 . 1 . . 1 . . . . . . . 1 9 Largest 4 | . 2 2 . 2 3 3 3 3 3 3 3 3 4 4 4 4 4 4 4 4 1 . 1 . . 1 . . . . . . . 1 1 Hottest 225 | . 125 125 . 125 210 120 120 120 120 120 120 120 157 185 188 186 204 204 204 225 23 . 50 . . . . . . . . . . . 80 Shots Fired 2137 | . 67 29 . 22 165 121 151 145 15 222 59 18 32 166 216 152 129 37 19 352 8 . 1 . . 1 . . . . . . . 1 9 Gun 160 | . 59 8 . 1 15 . . . . . . . . . . 5 26 . . 31 8 . . . . . . . . . . . . . 7 Cannon 1929 | . 8 21 . 13 145 112 147 145 14 219 59 18 32 159 216 143 103 34 19 319 . . 1 . . . . . . . . . . . 2 Launcher 43 | . . . . 8 5 9 4 . . 3 . . . 6 . 3 . 3 . 2 . . . . . . . . . . . . . . . Special 5 | . . . . . . . . . 1 . . . . 1 . 1 . . . . . . . . . 1 . . . . . . . 1 . Kinetic 1893 | . 26 6 . 3 80 112 147 145 14 219 59 18 32 159 216 148 129 34 19 319 8 . . . . . . . . . . . . . . Thermal 193 | . 41 23 . 11 80 . . . . . . . . . . . . . . 31 . . . . . . . . . . . . . . 7 Explosive 43 | . . . . 8 5 9 4 . . 3 . . . 6 . 3 . 3 . 2 . . . . . . . . . . . . . . . Electromagnetic . | . . . . . . . . . . . . . . . . . . . . . . . . . . . . . . . . . . . . Entropic 3 | . . . . . . . . . . . . . . . . . . . . . . . 1 . . . . . . . . . . . 2 Robot Hit Streak 22 | . 6 7 . 3 10 16 9 10 4 17 8 2 7 19 9 11 7 8 3 22 2 . . . . 3 . . . . . . . . 2 Robot Miss Streak 8 | . 5 4 . 2 5 4 4 4 1 4 2 4 7 3 8 3 5 2 3 4 1 . . . . . . . . . . . . 1 . Penetration Max 1 | . . . . . . . . . . 1 . . . 1 . 1 1 . . 1 . . . . . . . . . . . . . . . Secondary Targets 2 | . 2 . . . . . . . . . . . . . . . . . . . . . . . . . . . . . . . . . . Max Gunslinging Chain 1 | . 1 . . . . . . . . . . . . . . . . . . . . . . . . . . . . . . . . . . Shots Hit Robots 1182 | . 37 14 3 10 102 56 91 80 11 121 22 7 15 95 117 82 55 20 8 198 6 . . 6 . 4 . 4 . 3 3 . 4 3 5 Core Hits 626 | . 24 9 . 16 55 32 46 35 3 47 11 3 12 66 69 37 24 11 5 101 2 . . 5 . 1 . 2 . 2 1 . 4 2 1 Critical Kills 1 | . . . . . . . . . . . . . . . . . 1 . . . . . . . . . . . . . . . . . . Critical Parts Destroyed 4 | . . . . . . . . . . . . . . . . 1 3 . . . . . . . . . . . . . . . . . . Critical Strikes 166 | . 1 . . . 3 4 11 5 . 12 3 1 2 9 18 16 17 4 2 56 . . . 1 . . . . . . . . 1 . . Burn 2 | . 1 . . . 1 . . . . . . . . . . . . . . . . . . . . . . . . . . . . . . Destroy 5 | . . . . . . . . . . . . . . . . 1 4 . . . . . . . . . . . . . . . . . . Blast 157 | . . . . . 2 4 11 5 . 12 3 1 2 9 18 15 13 4 2 56 . . . . . . . . . . . . . . . Sever 1 | . . . . . . . . . . . . . . . . . . . . . . . . 1 . . . . . . . . . . . Impale 1 | . . . . . . . . . . . . . . . . . . . . . . . . . . . . . . . . . 1 . . Melee Attacks 115 | . . . 3 . . . . . . . . . . . . . . . . . . 1 . 10 1 11 1 4 6 4 13 3 22 29 7 Impact . | . . . . . . . . . . . . . . . . . . . . . . . . . . . . . . . . . . . . Slashing 61 | . . . . . . . . . . . . . . . . . . . . . . 1 . 10 1 11 1 4 6 4 13 3 7 . . Piercing 51 | . . . . . . . . . . . . . . . . . . . . . . . . . . . . . . . . . 15 29 7 Sneak Attacks 11 | . . . 3 . . . . . . . . . . . . . . . . . . . . 1 . . . . . 1 1 . 4 . 1 Combat Hostiles . | . . . . . . . . . . . . . . . . . . . . . . . . . . . . . . . . . . . . Follow-up Attacks . | . . . . . . . . . . . . . . . . . . . . . . . . . . . . . . . . . . . . Damage Inflicted 48011 | . 526 352 . 670 3066 2257 3297 2451 364 3854 501 136 764 3605 5305 5444 2651 892 264 9489 98 . . 264 . 109 . 300 . 169 190 . 452 143 398 Guns 1828 | . 449 50 . 17 179 . . . . . . . . . . 159 298 . . 578 98 . . . . . . . . . . . . . . Cannons 38436 | . 72 225 . 105 2059 1484 2660 2414 364 3595 501 136 406 2603 5166 5052 2331 547 264 8315 . . . . . . . . . . . . . . 137 Explosions 5366 | . . . . 529 727 773 567 . . 240 . . 319 1002 139 233 . 345 . 492 . . . . . . . . . . . . . . . Melee 1888 | . . . . . . . . . . . . . . . . . . . . . . . . 264 . 109 . 300 . 169 190 . 452 143 261 Ramming 493 | . 5 77 . 19 101 . 70 37 . 19 . . 39 . . . 22 . . 104 . . . . . . . . . . . . . . . Kinetic 37882 | . 201 50 . 19 1219 1484 2660 2414 364 3595 501 136 406 2603 5166 5211 2629 547 264 8315 98 . . . . . . . . . . . . . . Thermal 2564 | . 320 225 . 103 1019 . . . . . . . 319 . . . . . . 578 . . . . . . . . . . . . . . . Explosive 4908 | . . . . 529 727 773 567 . . 240 . . . 1002 . 233 . 345 . 492 . . . . . . . . . . . . . . . Electromagnetic 139 | . . . . . . . . . . . . . . . 139 . . . . . . . . . . . . . . . . . . . . Impact . | . . . . . . . . . . . . . . . . . . . . . . . . . . . . . . . . . . . . Slashing 1032 | . . . . . . . . . . . . . . . . . . . . . . . . 264 . 109 . 300 . 169 190 . . . . Piercing 856 | . . . . . . . . . . . . . . . . . . . . . . . . . . . . . . . . . 452 143 261 Entropic 137 | . . . . . . . . . . . . . . . . . . . . . . . . . . . . . . . . . . . 137 Highest Corruption 22 | . . . . 1 . . . 3 . 2 2 3 . . 5 9 10 10 11 22 21 18 18 . . . . . . . . . . 1 7 Average Corruption 5 | . . . . 1 . . . 1 . 1 2 2 . . 2 7 9 10 10 4 18 18 18 . . . . . . . . . . 1 1 Corruption Purged 12 | . . . . . . . . 4 . 1 . . . . . . . . . 4 3 . . . . . . . . . . . . . . Corruption Blocked . | . . . . . . . . . . . . . . . . . . . . . . . . . . . . . . . . . . . . Effects 285 | . . . . . . . . 4 . 18 14 14 . . 30 70 48 31 22 13 12 8 1 . . . . . . . . . . . . Message Errors 66 | . . . . . . . . . . 5 2 1 . . 9 19 11 8 5 2 4 . . . . . . . . . . . . . . Matter Fused 55 | . . . . . . . . . . 3 5 2 . . 6 14 9 3 4 1 5 2 1 . . . . . . . . . . . . Heat Flow Errors 40 | . . . . . . . . 1 . 3 2 3 . . 3 7 7 5 3 2 2 2 . . . . . . . . . . . . . Energy Discharges 40 | . . . . . . . . 2 . 2 3 2 . . 4 7 8 4 5 1 . 2 . . . . . . . . . . . . . Parts Rejected 3 | . . . . . . . . . . . . . . . . 1 . 1 . 1 . . . . . . . . . . . . . . . Parts Fused 2 | . . . . . . . . . . . . . . . . 1 1 . . . . . . . . . . . . . . . . . . Data Loss (minor) 38 | . . . . . . . . . . 1 1 5 . . 5 9 6 4 3 2 . 2 . . . . . . . . . . . . . Data Loss (major) 10 | . . . . . . . . . . . . 1 . . 1 6 . 1 . 1 . . . . . . . . . . . . . . . Misfires 12 | . . . . . . . . . . 3 . . . . 2 2 2 1 1 1 . . . . . . . . . . . . . . . Alerts 6 | . . . . . . . . 1 . . . . . . . 2 2 1 . . . . . . . . . . . . . . . . . Misdirections 4 | . . . . . . . . . . . . . . . . . . 1 . 2 1 . . . . . . . . . . . . . . Weapon Failures 9 | . . . . . . . . . . 1 1 . . . . 2 2 2 1 . . . . . . . . . . . . . . . . Overload Shots 2 | . . . . . . . . . . . . . . . . . . . . 2 . . . . . . . . . . . . . . . Effects 1 | . . . . . . . . . . . . . . . . . . . . 1 . . . . . . . . . . . . . . . Heat Surge 1 | . . . . . . . . . . . . . . . . . . . . 1 . . . . . . . . . . . . . . . Overflow Damage 1944 | . . . . 34 27 77 44 120 . 102 3 . 72 43 379 300 154 19 . 306 . . . . . . . 114 . . 77 . . . 73 Projectiles 1457 | . . . . . . 45 44 120 . 94 3 . 1 30 379 300 154 . . 287 . . . . . . . . . . . . . . . Explosions 221 | . . . . 34 27 32 . . . 8 . . 69 13 . . . 19 . 19 . . . . . . . . . . . . . . . Melee 266 | . . . . . . . . . . . . . 2 . . . . . . . . . . . . . . 114 . . 77 . . . 73 Knockbacks 251 | . 1 1 . 1 6 20 14 16 . 24 2 . 7 24 43 26 5 9 1 51 . . . . . . . . . . . . . . . Impact 5 | . 1 . . 1 . . . . . . . . 1 . . . . . . 2 . . . . . . . . . . . . . . . Kinetic 228 | . . 1 . . 6 20 14 16 . 20 2 . 6 21 39 23 5 8 1 46 . . . . . . . . . . . . . . . Secondary 18 | . . . . . . . . . . 4 . . . 3 4 3 . 1 . 3 . . . . . . . . . . . . . . . Self-Inflicted Damage 402 | . . . . 91 19 . 34 . . . . . 94 . . 20 . 59 . 85 . . . . . . . . . . . . . . . Shots 10 | . . . . 3 1 . 1 . . . . . 1 . . 1 . 1 . 2 . . . . . . . . . . . . . . . Rammed 55 | . 1 11 . 2 8 . 10 5 . 4 . . 2 . . . 3 . . 9 . . . . . . . . . . . . . . . Targets Rammed 64 | . 2 13 . 2 11 . 11 5 . 4 . . 3 . . . 4 . . 9 . . . . . . . . . . . . . . . Kicked . | . . . . . . . . . . . . . . . . . . . . . . . . . . . . . . . . . . . . Crushed 9 | . 1 2 . . 3 . 1 . . . . . 1 . . . 1 . . . . . . . . . . . . . . . . . . Highest Temperature 471 | . 237 138 . 69 370 324 24 241 . 213 145 96 18 72 381 299 308 380 361 471 236 204 . . . 58 79 85 100 11 303 40 . 172 254 Average Temperature 73 | . 88 55 . 35 89 137 7 69 . 47 78 60 5 16 62 63 94 126 163 129 114 96 . . . 19 24 23 44 8 75 12 . 51 87 Received Heat Transfer 3170 | . 207 66 . . 270 276 261 100 . 237 27 . . 174 435 432 72 145 . 297 18 . 18 . . . . . . . . . . 72 63 Effects 4 | . . . . . 1 . . . . . . . . . . . . . 2 1 . . . . . . . . . . . . . . . Shutdowns 1 | . . . . . . . . . . . . . . . . . . . 1 . . . . . . . . . . . . . . . . Energy Bleed 1 | . . . . . . . . . . . . . . . . . . . 1 . . . . . . . . . . . . . . . . Short Circuit 1 | . . . . . 1 . . . . . . . . . . . . . . . . . . . . . . . . . . . . . . Damage (minor) 1 | . . . . . . . . . . . . . . . . . . . . 1 . . . . . . . . . . . . . . . Siege Activations 40 | . . . . . . . . . . 7 5 1 . 7 6 7 . 2 1 4 . . . . . . . . . . . . . . . Total Turns 543 | . . . . . . . . . . 65 50 18 . 110 56 159 . 24 10 51 . . . . . . . . . . . . . . . Longest Duration 59 | . . . . . . . . . . 19 14 18 . 36 19 59 . 14 10 20 . . . . . . . . . . . . . . . Martial Activations . | . . . . . . . . . . . . . . . . . . . . . . . . . . . . . . . . . . . . Shielding Activations . | . . . . . . . . . . . . . . . . . . . . . . . . . . . . . . . . . . . . Robots Disrupted . | . . . . . . . . . . . . . . . . . . . . . . . . . . . . . . . . . . . . Combat Hostiles . | . . . . . . . . . . . . . . . . . . . . . . . . . . . . . . . . . . . . Robots Corrupted 2 | . . . . . . . . . . 1 . . . . 1 . . . . . . . . . . . . . . . . . . . . Combat Hostiles 1 | . . . . . . . . . . 1 . . . . . . . . . . . . . . . . . . . . . . . . . Parts Fried 6 | . . . . . . . . . . 2 1 . . . 1 . . . . 2 . . . . . . . . . . . . . . . Impact Corruptions 4 | . . . . . . . . . . 1 . . 1 . 1 . . . . 1 . . . . . . . . . . . . . . . Robots Melted . | . . . . . . . . . . . . . . . . . . . . . . . . . . . . . . . . . . . . Combat Hostiles . | . . . . . . . . . . . . . . . . . . . . . . . . . . . . . . . . . . . . Parts Melted 4 | . . . . . 3 . . 1 . . . . . . . . . . . . . . . . . . . . . . . . . . . Heat Transferred 4555 | . 888 481 . 222 1998 . . . . . . . 200 . . . . . . 766 . . . . . . . . . . . . . . . Parts Sabotaged . | . . . . . . . . . . . . . . . . . . . . . . . . . . . . . . . . . . . . Parts Stolen . | . . . . . . . . . . . . . . . . . . . . . . . . . . . . . . . . . . . . Parts Stripped . | . . . . . . . . . . . . . . . . . . . . . . . . . . . . . . . . . . . . Power Chain Reactions . | . . . . . . . . . . . . . . . . . . . . . . . . . . . . . . . . . . . . Alert | -11 -10 -10 -10 -9 -8 -8 -8 -7 -7 -7 -7 -7 -6 -6 -6 -6 -6 -6 -6 -5 -5 -5 -5 -4 -4 -4 -4 -4 -3 -3 -3 -3 -2 -1 -1 ------- Run | Yrd Mat Min Exi Min Mat Gar Mat Fac Was Fac Low Low Fac Gar Fac Gar Fac Low Low Fac Upp Upp War Pro Fac Upp Upp Zhi Pro Res Arm Lab Res Acc Com Maximum Alert Level 5 | . . . . . 2 4 3 1 . 2 . . . 4 4 5 5 . . 4 . . . . . . . . . . . . . 1 1 Low Security (%) 42 | . 100 100 . 100 53 . . 60 100 65 . . 100 5 . . . . . 24 . . . . 100 . . . . 100 100 . 100 88 . Level 1 13 | . . . . . 45 7 . 39 . 16 . . . 22 . . . . . 23 . . . . . . . . . . . . . 11 100 Level 2 14 | . . . . . 1 26 91 . . 18 . . . 30 30 . . . . 14 . . . . . . . . . . . . . . . Level 3 8 | . . . . . . 37 8 . . . . . . 30 26 8 . . . 14 . . . . . . . . . . . . . . . Level 4 13 | . . . . . . 28 . . . . . . . 10 43 33 77 . . 22 . . . . . . . . . . . . . . . Level 5 6 | . . . . . . . . . . . . . . . . 57 22 . . . . . . . . . . . . . . . . . . High Security . | . . . . . . . . . . . . . . . . . . . . . . . . . . . . . . . . . . . . Max Security . | . . . . . . . . . . . . . . . . . . . . . . . . . . . . . . . . . . . . Peak Influence 2522 | . 79 85 . 105 420 1149 732 355 120 519 . . 182 1265 1494 2522 1635 . . 1473 . . . . 130 . . . . 7 29 . 40 351 325 Initial 1323 | . . 16 . . . 270 559 329 120 22 . . . 91 663 1014 1323 . . 264 . . . . 116 . . . . . . . . . 224 Average 536 | . 18 14 . 12 184 856 570 180 77 183 . . 42 658 1003 1808 1485 . . 591 . . . . 116 . . . . . 4 . 12 51 288 Influence Increases 14269 | . 317 157 . 172 1012 879 805 640 2 1256 180 60 224 1194 1466 1558 927 120 80 1871 30 . . 245 40 33 22 10 . 14 68 . 154 612 121 Destroy 0b10 Robot/C 7120 | . 200 120 . 80 600 420 460 400 . 760 120 40 80 520 900 720 420 100 60 940 . . . 80 . 20 20 . . . . . . 60 . Destroy 0b10 Robot/NC 545 | . 25 15 . 10 45 . 65 30 . 35 5 . 25 5 55 . 35 . . 135 . . . 5 . . . 10 . 10 5 . 20 . 10 Destroy Leader 1362 | . 48 20 . 10 180 20 108 114 . 212 10 20 10 30 160 40 90 20 20 202 . . . 10 . 10 . . . 4 . . 2 20 2 Allied During Kill 520 | . . 2 . 5 . . . . . 28 . . . 17 129 47 280 . . . . . . . . 3 2 . . . . . . 7 . Successful Hack 518 | . 29 . . . 22 30 16 26 . 87 . . . 16 23 . 18 . . 18 . . . . 25 . . . . . . . 30 93 85 Select Force Hacks 30 | . . . . . 30 . . . . . . . . . . . . . . . . . . . . . . . . . . . . . . Disable Machine 585 | . . . . . . 30 15 30 . 60 . . 60 90 75 75 30 . . 90 . . . . 15 . . . . . 15 . . . . Anti-Garrison Action 1100 | . . . . . . 300 . . . . . . . 400 . 400 . . . . . . . . . . . . . . . . . . . Destroy Structure 1259 | . . . . 67 75 64 81 25 2 74 . . 49 116 79 126 39 . . 336 . . . . . . . . . . 18 . 42 57 9 Partial Spotted 210 | . . . . . . . . . . . . . . . . . . . . 30 . . . . . . . . . . 30 . 60 75 15 Lose Combat Pursuer 1020 | . 15 . . . 60 15 60 15 . . 45 . . . 45 150 15 . . 120 30 . . 150 . . . . . . . . . 300 . Influence Decreases 14014 | . 274 200 . 172 596 146 1230 1019 315 772 648 108 93 60 1282 485 1851 972 405 873 666 250 533 60 109 149 22 10 . 14 68 . 154 261 217 Entered New Map 6212 | . . 27 . . . 146 590 395 225 10 192 10 . 40 602 435 1199 592 143 157 526 150 533 . 69 44 . . . . . . . . 127 Time Decay 6847 | . 274 173 . 157 566 . 490 614 90 700 456 98 93 . 580 . 502 380 262 526 140 100 . 60 40 105 2 10 . 14 68 . 154 143 50 Lost Part 442 | . . . . . 10 . . 10 . 42 . . . 20 40 30 10 . . 190 . . . . . . . . . . . . . 50 40 Lost Ally 315 | . . . . 15 20 . . . . 20 . . . . 60 20 140 . . . . . . . . . 20 . . . . . . 20 . Purge Threat 198 | . . . . . . . 150 . . . . . . . . . . . . . . . . . . . . . . . . . . 48 . Squads Dispatched 79 | . 2 2 . 1 5 . 5 7 . 11 . . 1 . 9 . 7 . . 11 . . . . . . . . . . 1 . 8 8 1 Investigation 5 | . 1 1 . . 1 . . 1 . . . . . . . . . . . . . . . . . . . . . . . . 1 . . Extermination 22 | . . . . . . . . 3 . 8 . . 1 . 3 . 3 . . 2 . . . . . . . . . . 1 . . 1 . Reinforcement 32 | . 1 . . 1 2 . 4 3 . 3 . . . . 3 . 2 . . 7 . . . . . . . . . . . . 1 4 1 Assault 9 | . . 1 . . . . 1 . . . . . . . 3 . 2 . . 2 . . . . . . . . . . . . . . . Garrison 2 | . . . . . 2 . . . . . . . . . . . . . . . . . . . . . . . . . . . . . . Intercept 9 | . . . . . . . . . . . . . . . . . . . . . . . . . . . . . . . . . 6 3 . Searches Triggered . | . . . . . . . . . . . . . . . . . . . . . . . . . . . . . . . . . . . . Construction Impeded 11 | . . . . 1 1 . 2 1 . 1 . . . . 1 . 1 . . 3 . . . . . . . . . . . . . . . Haulers Reinforced 3 | . . . . . . . . . . . . . . . 2 . 1 . . . . . . . . . . . . . . . . . . Active Scanning Responses . | . . . . . . . . . . . . . . . . . . . . . . . . . . . . . . . . . . . . Cargo Convoy Interrupts 3 | . . . . . . . . . . 1 . . . . 1 . . . . 1 . . . . . . . . . . . . . . . Stealth | -11 -10 -10 -10 -9 -8 -8 -8 -7 -7 -7 -7 -7 -6 -6 -6 -6 -6 -6 -6 -5 -5 -5 -5 -4 -4 -4 -4 -4 -3 -3 -3 -3 -2 -1 -1 --------- Run | Yrd Mat Min Exi Min Mat Gar Mat Fac Was Fac Low Low Fac Gar Fac Gar Fac Low Low Fac Upp Upp War Pro Fac Upp Upp Zhi Pro Res Arm Lab Res Acc Com Distress Signals 30 | . . . . . 5 . 2 1 . 4 . . . . 4 . 1 . . 5 . . 1 . . . . . . . . . 4 2 1 Communications Jammed . | . . . . . . . . . . . . . . . . . . . . . . . . . . . . . . . . . . . . Distress Signals . | . . . . . . . . . . . . . . . . . . . . . . . . . . . . . . . . . . . . Times Spotted 538 | . 16 6 . 11 37 18 38 31 3 40 6 2 6 22 64 34 32 8 3 69 5 . 11 13 . 3 2 . . 2 1 . 13 34 8 Peak Tracking Total 15 | . 3 2 . 4 4 3 8 5 2 4 3 1 3 4 11 7 7 3 2 12 3 . 11 5 . 2 2 . . 1 1 . 5 15 6 Tactical Retreats 37 | . 1 . . 2 2 1 4 1 . . 1 . . . 1 6 1 . . 6 2 . . 4 . . . . . . . . . 5 . Traps | -11 -10 -10 -10 -9 -8 -8 -8 -7 -7 -7 -7 -7 -6 -6 -6 -6 -6 -6 -6 -5 -5 -5 -5 -4 -4 -4 -4 -4 -3 -3 -3 -3 -2 -1 -1 ------- Run | Yrd Mat Min Exi Min Mat Gar Mat Fac Was Fac Low Low Fac Gar Fac Gar Fac Low Low Fac Upp Upp War Pro Fac Upp Upp Zhi Pro Res Arm Lab Res Acc Com Traps Triggered 21 | . 1 . . . . 3 . 4 . 3 . . . . 1 2 2 . . 2 . . . . . . . . . . . . 1 2 . Indirectly . | . . . . . . . . . . . . . . . . . . . . . . . . . . . . . . . . . . . . Trap Hack Attempts . | . . . . . . . . . . . . . . . . . . . . . . . . . . . . . . . . . . . . Triggered . | . . . . . . . . . . . . . . . . . . . . . . . . . . . . . . . . . . . . Disarmed . | . . . . . . . . . . . . . . . . . . . . . . . . . . . . . . . . . . . . Reprogrammed . | . . . . . . . . . . . . . . . . . . . . . . . . . . . . . . . . . . . . Reused . | . . . . . . . . . . . . . . . . . . . . . . . . . . . . . . . . . . . . Traps Extracted . | . . . . . . . . . . . . . . . . . . . . . . . . . . . . . . . . . . . . Installed . | . . . . . . . . . . . . . . . . . . . . . . . . . . . . . . . . . . . . Triggered . | . . . . . . . . . . . . . . . . . . . . . . . . . . . . . . . . . . . . Machines | -11 -10 -10 -10 -9 -8 -8 -8 -7 -7 -7 -7 -7 -6 -6 -6 -6 -6 -6 -6 -5 -5 -5 -5 -4 -4 -4 -4 -4 -3 -3 -3 -3 -2 -1 -1 ---------- Run | Yrd Mat Min Exi Min Mat Gar Mat Fac Was Fac Low Low Fac Gar Fac Gar Fac Low Low Fac Upp Upp War Pro Fac Upp Upp Zhi Pro Res Arm Lab Res Acc Com Machines Disabled 56 | . . . . . . 6 1 2 . 4 . . 4 11 5 10 2 . . 6 . 1 1 . 1 . . . . . 1 1 . . . Max in Single Turn 2 | . . . . . . 1 1 1 . 1 . . 2 1 1 2 1 . . 1 . 1 1 . 1 . . . . . 1 1 . . . Garrison Access 4 | . . . . . . . . . . 1 . . . . . . . . . . . . . . . . . . . . . . 2 1 . Garrison Relay 11 | . . . . . . 4 . . . . . . . 4 . 3 . . . . . . . . . . . . . . . . . . . Phase Generator 1 | . . . . . . . . . . . . . . . . 1 . . . . . . . . . . . . . . . . . . . Machines Repaired . | . . . . . . . . . . . . . . . . . . . . . . . . . . . . . . . . . . . . Machines Dismantled . | . . . . . . . . . . . . . . . . . . . . . . . . . . . . . . . . . . . . Machines Sabotaged . | . . . . . . . . . . . . . . . . . . . . . . . . . . . . . . . . . . . . Overloaded Fab Kills . | . . . . . . . . . . . . . . . . . . . . . . . . . . . . . . . . . . . . Hacking | -11 -10 -10 -10 -9 -8 -8 -8 -7 -7 -7 -7 -7 -6 -6 -6 -6 -6 -6 -6 -5 -5 -5 -5 -4 -4 -4 -4 -4 -3 -3 -3 -3 -2 -1 -1 --------- Run | Yrd Mat Min Exi Min Mat Gar Mat Fac Was Fac Low Low Fac Gar Fac Gar Fac Low Low Fac Upp Upp War Pro Fac Upp Upp Zhi Pro Res Arm Lab Res Acc Com Machines Accessed 110 | . 9 1 2 . 9 2 5 6 . 15 . . 4 2 4 3 7 . . 5 . 2 2 . 2 1 . 4 . 1 2 . 4 13 5 Terminals 80 | . 8 . . . 7 2 5 3 . 12 . . 3 2 3 3 5 . . 3 . . . . 2 1 . . . 1 2 . 2 11 5 Fabricators 5 | . . . . . . . . 1 . 1 . . . . . . 1 . . 1 . . . . . . . . . . . . . 1 . Repair Stations 3 | . 1 . . . . . . 2 . . . . . . . . . . . . . . . . . . . . . . . . . . . Recycling Units 1 | . . . . . 1 . . . . . . . . . . . . . . . . . . . . . . . . . . . . . . Scanalyzers . | . . . . . . . . . . . . . . . . . . . . . . . . . . . . . . . . . . . . Garrison Access 10 | . . . . . 1 . . . . 2 . . 1 . 1 . 1 . . 1 . . . . . . . . . . . . 2 1 . Total Hacks 257 | . 25 1 2 . 24 2 11 10 . 33 . . 7 4 8 6 15 . . 10 . 8 2 . 4 3 . 17 . 1 5 . 15 31 13 Successful 155 | . 15 1 2 . 15 2 3 4 . 17 . . 3 2 5 1 6 . . 3 . 8 2 . 3 3 . 17 . . . . 11 22 10 Failed 100 | . 9 . . . 9 . 8 6 . 16 . . 4 2 3 5 9 . . 7 . . . . 1 . . . . 1 5 . 3 9 3 Catastrophic 17 | . . . . . 2 . 2 1 . 2 . . . . 1 . 2 . . 3 . . . . . . . . . 1 1 . 1 1 . Database Lockouts 2 | . 1 . . . . . . . . . . . . . . . . . . . . . . . . . . . . . . . 1 . . Manual 141 | . 18 . 1 . 18 . 9 3 . 27 . . 6 . 3 . 6 . . 8 . . . . 3 . . . . 1 4 1 13 15 5 Terminals 201 | . 23 . . . 22 2 11 4 . 30 . . 6 4 7 6 11 . . 8 . . . . 4 3 . . . 1 5 . 13 28 13 Fabricators 7 | . . . . . . . . 1 . 1 . . . . . . 2 . . 1 . . . . . . . . . . . . . 2 . Repair Stations 7 | . 2 . . . . . . 5 . . . . . . . . . . . . . . . . . . . . . . . . . . . Recycling Units 1 | . . . . . 1 . . . . . . . . . . . . . . . . . . . . . . . . . . . . . . Scanalyzers . | . . . . . . . . . . . . . . . . . . . . . . . . . . . . . . . . . . . . Garrison Access 11 | . . . . . 1 . . . . 2 . . 1 . 1 . 2 . . 1 . . . . . . . . . . . . 2 1 . Terminal Hacks 91 | . 8 1 2 . 4 2 3 . . 3 . . . 2 3 1 3 . . 1 . 8 2 . 1 3 . 17 . . . . 8 12 7 Record 16 | . . . 1 . . . . . . . . . . . . . . . . . . 7 . . . 3 . 5 . . . . . . . Part Schematic 5 | . . . . . 1 . . . . . . . . . . . . . . . . . . . . . . 4 . . . . . . . Robot Analysis 6 | . 2 . . . . . . . . . . . . . . . . . . . . . . . . . . 4 . . . . . . . Prototype ID Bank 14 | . . . . . 2 . . . . . . . . . 2 . . . . . . . . . . . . 4 . . . . 2 2 2 Open Door 9 | . . 1 . . . . . . . . . . . . . 1 . . . . . 1 2 . . . . . . . . . . 3 1 Open DSF 1 | . . . . . . . . . . . . . . . . . 1 . . . . . . . . . . . . . . . . . . Level Access Points 2 | . . . . . . . . . . . . . . . . . . . . . . . . . . . . . . . . . 1 1 . Branch Access Points 7 | . . . . . . . 1 . . 1 . . . . . . 1 . . 1 . . . . 1 . . . . . . . 1 1 . Emergency Access Points 2 | . . . . . . 1 . . . . . . . 1 . . . . . . . . . . . . . . . . . . . . . Machine Index 4 | . . . . . . . . . . . . . . . . . . . . . . . . . . . . . . . . . 1 1 2 Terminal Index 3 | . 1 . . . . . . . . 1 . . . . . . . . . . . . . . . . . . . . . . . . 1 Fabricator Index 1 | . . . . . . . . . . . . . . . . . . . . . . . . . . . . . . . . . . 1 . Garrison Index 2 | . . . . . . . . . . . . . . . . . . . . . . . . . . . . . . . . . 1 . 1 Alert Level 1 | . . . . . . . 1 . . . . . . . . . . . . . . . . . . . . . . . . . . . . Unreport Threat 2 | . . . . . . . 1 . . . . . . . . . . . . . . . . . . . . . . . . . . 1 . Locate Traps 6 | . 3 . . . . . . . . 1 . . . . . . 1 . . . . . . . . . . . . . . . . 1 . Maintenance Status 1 | . . . . . . . . . . . . . . . . . . . . . . . . . . . . . . . . . 1 . . Recall Extermination 1 | . . . . . . . . . . . . . . . 1 . . . . . . . . . . . . . . . . . . . . Recall Reinforcements 1 | . 1 . . . . . . . . . . . . . . . . . . . . . . . . . . . . . . . . . . Hauler Manifests 3 | . 1 . . . 1 . . . . . . . . . . . . . . . . . . . . . . . . . . . 1 . . Registered Prototypes 1 | . . . . . . . . . . . . . . . . . . . . . . . . . . . . . . . . . . 1 . Security Stations 2 | . . . . . . 1 . . . . . . . 1 . . . . . . . . . . . . . . . . . . . . . Proto ID Catalog 1 | . . . 1 . . . . . . . . . . . . . . . . . . . . . . . . . . . . . . . . Fabricator Hacks 4 | . . . . . . . . 1 . 1 . . . . . . 1 . . . . . . . . . . . . . . . . 1 . Network Status 4 | . . . . . . . . 1 . 1 . . . . . . 1 . . . . . . . . . . . . . . . . 1 . Repair Station Hacks 3 | . 1 . . . . . . 2 . . . . . . . . . . . . . . . . . . . . . . . . . . . Scan Component 3 | . 1 . . . . . . 2 . . . . . . . . . . . . . . . . . . . . . . . . . . . Recycling Unit Hacks . | . . . . . . . . . . . . . . . . . . . . . . . . . . . . . . . . . . . . Scanalyzer . | . . . . . . . . . . . . . . . . . . . . . . . . . . . . . . . . . . . . Garrison Access Hacks 7 | . . . . . 1 . . . . 1 . . 1 . 1 . . . . . . . . . . . . . . . . . 2 1 . Unlock Access 3 | . . . . . 1 . . . . . . . 1 . 1 . . . . . . . . . . . . . . . . . . . . Seal Access 4 | . . . . . . . . . . 1 . . . . . . . . . . . . . . . . . . . . . . 2 1 . Unauthorized Hacks 50 | . 6 . . . 10 . . 1 . 12 . . 2 . 1 . 2 . . 2 . . . . 2 . . . . . . . 1 8 3 Terminals 49 | . 6 . . . 9 . . 1 . 12 . . 2 . 1 . 2 . . 2 . . . . 2 . . . . . . . 1 8 3 Assimilate 2 | . . . . . 1 . . . . 1 . . . . . . . . . . . . . . . . . . . . . . . . . Botnet 29 | . 4 . . . 5 . . 1 . 4 . . 2 . 1 . 2 . . 2 . . . . 2 . . . . . . . 1 2 3 Disrupt 1 | . . . . . . . . . . . . . . . . . . . . . . . . . . . . . . . . . . 1 . Skim 17 | . 2 . . . 3 . . . . 7 . . . . . . . . . . . . . . . . . . . . . . . 5 . Fabricators . | . . . . . . . . . . . . . . . . . . . . . . . . . . . . . . . . . . . . Repair Stations . | . . . . . . . . . . . . . . . . . . . . . . . . . . . . . . . . . . . . Recycling Units 1 | . . . . . 1 . . . . . . . . . . . . . . . . . . . . . . . . . . . . . . Tunnel 1 | . . . . . 1 . . . . . . . . . . . . . . . . . . . . . . . . . . . . . . Scanalyzers . | . . . . . . . . . . . . . . . . . . . . . . . . . . . . . . . . . . . . Garrison Access . | . . . . . . . . . . . . . . . . . . . . . . . . . . . . . . . . . . . . Data Cores Recovered 5 | . . . . . . . . . . . . . . . 1 . 2 . . 1 . . . . . . . . . . 1 . . . . Used 1 | . . . . . . . . . . . . . . . . . 1 . . . . . . . . . . . . . . . . . . Hacking Detections 79 | . 6 . . . 8 1 5 6 . 12 . . 3 2 3 3 6 . . 5 . . . . 1 . . . . 1 2 . 2 10 3 Full Trace Events . | . . . . . . . . . . . . . . . . . . . . . . . . . . . . . . . . . . . . Feedback Events . | . . . . . . . . . . . . . . . . . . . . . . . . . . . . . . . . . . . . Feedback Blocked . | . . . . . . . . . . . . . . . . . . . . . . . . . . . . . . . . . . . . Robot Schematics Acquired . | . . . . . . . . . . . . . . . . . . . . . . . . . . . . . . . . . . . . Robots Built . | . . . . . . . . . . . . . . . . . . . . . . . . . . . . . . . . . . . . Authchips . | . . . . . . . . . . . . . . . . . . . . . . . . . . . . . . . . . . . . Time . | . . . . . . . . . . . . . . . . . . . . . . . . . . . . . . . . . . . . Total Robot Build Rating . | . . . . . . . . . . . . . . . . . . . . . . . . . . . . . . . . . . . . Part Schematics Acquired 5 | . . . . . 1 . . . . . . . . . . . . . . . . . . . . . . 4 . . . . . . . Parts Built . | . . . . . . . . . . . . . . . . . . . . . . . . . . . . . . . . . . . . Authchips . | . . . . . . . . . . . . . . . . . . . . . . . . . . . . . . . . . . . . Time . | . . . . . . . . . . . . . . . . . . . . . . . . . . . . . . . . . . . . Total Part Build Rating . | . . . . . . . . . . . . . . . . . . . . . . . . . . . . . . . . . . . . Parts Repaired . | . . . . . . . . . . . . . . . . . . . . . . . . . . . . . . . . . . . . Time . | . . . . . . . . . . . . . . . . . . . . . . . . . . . . . . . . . . . . Parts Recycled . | . . . . . . . . . . . . . . . . . . . . . . . . . . . . . . . . . . . . Recycled Matter . | . . . . . . . . . . . . . . . . . . . . . . . . . . . . . . . . . . . . Retrieved Matter . | . . . . . . . . . . . . . . . . . . . . . . . . . . . . . . . . . . . . Retrieved Components . | . . . . . . . . . . . . . . . . . . . . . . . . . . . . . . . . . . . . Parts Scanalyzed . | . . . . . . . . . . . . . . . . . . . . . . . . . . . . . . . . . . . . Part Schematics Acquired . | . . . . . . . . . . . . . . . . . . . . . . . . . . . . . . . . . . . . Parts Damaged . | . . . . . . . . . . . . . . . . . . . . . . . . . . . . . . . . . . . . Bothacking | -11 -10 -10 -10 -9 -8 -8 -8 -7 -7 -7 -7 -7 -6 -6 -6 -6 -6 -6 -6 -5 -5 -5 -5 -4 -4 -4 -4 -4 -3 -3 -3 -3 -2 -1 -1 ------------ Run | Yrd Mat Min Exi Min Mat Gar Mat Fac Was Fac Low Low Fac Gar Fac Gar Fac Low Low Fac Upp Upp War Pro Fac Upp Upp Zhi Pro Res Arm Lab Res Acc Com Used RIF Installer . | . . . . . . . . . . . . . . . . . . . . . . . . . . . . . . . . . . . . Robots Hacked 3 | . . . 3 . . . . . . . . . . . . . . . . . . . . . . . . . . . . . . . . Non-combat 2 | . . . 2 . . . . . . . . . . . . . . . . . . . . . . . . . . . . . . . . Combat 1 | . . . 1 . . . . . . . . . . . . . . . . . . . . . . . . . . . . . . . . Robot Hacks Applied 3 | . . . 3 . . . . . . . . . . . . . . . . . . . . . . . . . . . . . . . . parse_system 3 | . . . 3 . . . . . . . . . . . . . . . . . . . . . . . . . . . . . . . . Relay Couplers Released 50 | . . . . . . 19 . . . 3 . . . 14 . 10 . . . 4 . . . . . . . . . . . . . . . Machine Destruction 40 | . . . . . . 16 . . . . . . . 14 . 10 . . . . . . . . . . . . . . . . . . . Programmers 10 | . . . . . . 3 . . . 3 . . . . . . . . . 4 . . . . . . . . . . . . . . . Fabnet Peak Effective % . | . . . . . . . . . . . . . . . . . . . . . . . . . . . . . . . . . . . . Robots Rewired 10 | . . . . . . . . . . . . . . . . 10 . . . . . . . . . . . . . . . . . . . Allies Hacked 1 | . . . . . . . . . . 1 . . . . . . . . . . . . . . . . . . . . . . . . . Hacks Repelled . | . . . . . . . . . . . . . . . . . . . . . . . . . . . . . . . . . . . . Allies | -11 -10 -10 -10 -9 -8 -8 -8 -7 -7 -7 -7 -7 -6 -6 -6 -6 -6 -6 -6 -5 -5 -5 -5 -4 -4 -4 -4 -4 -3 -3 -3 -3 -2 -1 -1 -------- Run | Yrd Mat Min Exi Min Mat Gar Mat Fac Was Fac Low Low Fac Gar Fac Gar Fac Low Low Fac Upp Upp War Pro Fac Upp Upp Zhi Pro Res Arm Lab Res Acc Com Total Allies 24 | . . 1 . 2 . . . . 1 . . . . 3 . 13 . . . . . 2 . . . 1 . . . . . . . 1 . Largest Group 12 | . . 1 1 2 1 . . . 1 1 . . . 3 3 12 12 . . . . 2 . . . 1 1 . . . . . . 1 . Highest-Rated Group 353 | . . 31 31 41 10 . . . 141 134 . . . 209 209 353 353 . . . . 50 . . . 54 54 . . . . . . 84 . Highest-Rated Ally 141 | . . 31 31 31 10 . . . 141 134 . . . 85 85 85 46 . . . . 25 . . . 54 54 . . . . . . 84 . Initial Warlord ECA Mod 309 | . . . . . . . 6 5 5 5 5 5 4 4 13 9 18 15 15 14 14 14 14 13 13 13 13 13 12 12 12 12 11 10 10 Warlord Squad Rendezvous 7 | . . . . . . . . . . . . . . . 4 . 3 . . . . . . . . . . . . . . . . . . Dakka 2 | . . . . . . . . . . . . . . . 2 . . . . . . . . . . . . . . . . . . . . Ranger 1 | . . . . . . . . . . . . . . . 1 . . . . . . . . . . . . . . . . . . . . Pyro 1 | . . . . . . . . . . . . . . . 1 . . . . . . . . . . . . . . . . . . . . Chimera 1 | . . . . . . . . . . . . . . . . . 1 . . . . . . . . . . . . . . . . . . Ghost 2 | . . . . . . . . . . . . . . . . . 2 . . . . . . . . . . . . . . . . . . Total Orders 18 | . . . . . . . . . . . . . . 4 . . . . . . . . . . . 1 7 . 3 1 1 . . 1 . STAY 3 | . . . . . . . . . . . . . . . . . . . . . . . . . . . 2 . 1 . . . . . . ROAM 2 | . . . . . . . . . . . . . . 2 . . . . . . . . . . . . . . . . . . . . . FOLLOW 5 | . . . . . . . . . . . . . . 2 . . . . . . . . . . . . 2 . . . . . . 1 . RETURN 8 | . . . . . . . . . . . . . . . . . . . . . . . . . . 1 3 . 2 1 1 . . . . Ally Attacks 210 | . . 3 . 13 . . . . 13 13 . . . 13 68 32 44 . . . . . . . . 2 4 . . . . . . 5 . Total Damage 6985 | . . 41 . 166 . . . . 560 575 . . . 540 2106 1005 1653 . . . . . . . . 13 125 . . . . . . 201 . Kills 64 | . . 1 . 3 . . . . 3 12 . . . 5 21 6 11 . . . . . . . . . 1 . . . . . . 1 . Allies Corrupted . | . . . . . . . . . . . . . . . . . . . . . . . . . . . . . . . . . . . . Allies Melted . | . . . . . . . . . . . . . . . . . . . . . . . . . . . . . . . . . . . . Field Lobotomies 5 | . . . . . . . . . 1 . . . . 1 . 1 . . . . . . . . . 1 . . . . . . . 1 . Intel | -11 -10 -10 -10 -9 -8 -8 -8 -7 -7 -7 -7 -7 -6 -6 -6 -6 -6 -6 -6 -5 -5 -5 -5 -4 -4 -4 -4 -4 -3 -3 -3 -3 -2 -1 -1 ------- Run | Yrd Mat Min Exi Min Mat Gar Mat Fac Was Fac Low Low Fac Gar Fac Gar Fac Low Low Fac Upp Upp War Pro Fac Upp Upp Zhi Pro Res Arm Lab Res Acc Com Active Infowar (turns) 22475 | . . . 2 . . . . 2029 193 3630 1379 1090 687 1897 1793 2099 1343 894 574 1468 289 202 321 121 95 249 306 95 250 117 340 44 414 439 115 Optics 22473 | . . . . . . . . 2029 193 3630 1379 1090 687 1897 1793 2099 1343 894 574 1468 289 202 321 121 95 249 306 95 250 117 340 44 414 439 115 Sensors 5433 | . . . 2 . . . . . . . 1339 1067 1 . . . . 841 410 . 259 202 309 88 35 229 306 95 250 . . . . . . Triangulation 2317 | . . . . . . . . . . . . . . . . . . . . . . . . . 47 249 306 95 250 107 294 44 414 439 72 Cloaking 2315 | . . . . . . . . . . . . . . . . . . . . . . . 6 8 . 210 298 95 250 117 340 44 414 437 96 Jamming 438 | . . . . . . . . . . . . . . . . . . . . . . . . . 2 4 . 48 . 89 226 13 56 . . Robot Analysis Total 6 | . 2 . . . . . . . . . . . . . . . . . . . . . . . . . . 4 . . . . . . . Derelict Logs Recovered 19 | . . 1 . 1 . . . . . . 2 3 . . . . . 2 1 . 2 1 . 2 . 2 2 . . . . . . . . Drone Launches 7 | . . . . . . . . . . . . . . . . . . . . . . . . . 1 . . . 2 1 3 . . . . Drone Recoveries 7 | . . . . . . . . . . . . . . . . . . . . . . . . . . . 1 . 2 1 3 . . . . Exploration | -11 -10 -10 -10 -9 -8 -8 -8 -7 -7 -7 -7 -7 -6 -6 -6 -6 -6 -6 -6 -5 -5 -5 -5 -4 -4 -4 -4 -4 -3 -3 -3 -3 -2 -1 -1 ------------- Run | Yrd Mat Min Exi Min Mat Gar Mat Fac Was Fac Low Low Fac Gar Fac Gar Fac Low Low Fac Upp Upp War Pro Fac Upp Upp Zhi Pro Res Arm Lab Res Acc Com Turns Passed 31360 | . 1131 902 403 1282 2191 1679 1299 2029 193 3630 1379 1090 687 1897 1793 2099 1343 894 574 1468 289 202 321 121 95 249 306 95 250 117 340 44 414 439 115 Spaces Moved 22362 | 1 629 516 244 602 1128 825 661 1098 100 1939 754 640 365 918 883 952 697 487 322 609 358 391 612 272 284 785 577 204 558 247 399 100 1652 1165 388 Core 1205 | . . . . . . . . . . . . . . . . . . . . 90 358 391 366 . . . . . . . . . . . . Treads 14189 | . 584 516 244 602 1128 825 661 1098 100 1939 754 640 365 918 883 952 697 487 322 474 . . . . . . . . . . . . . . . Legs 46 | 1 45 . . . . . . . . . . . . . . . . . . . . . . . . . . . . . . . . . . Wheels 45 | . . . . . . . . . . . . . . . . . . . . 45 . . . . . . . . . . . . . . . Hover . | . . . . . . . . . . . . . . . . . . . . . . . . . . . . . . . . . . . . Flight 6877 | . . . . . . . . . . . . . . . . . . . . . . . 246 272 284 785 577 204 558 247 399 100 1652 1165 388 Fastest Speed 8 | 120 120 160 160 160 160 162 162 165 163 163 163 163 163 158 158 158 170 170 170 50 50 50 35 26 23 24 24 24 24 18 18 18 17 8 9 Average Speed 114 | 120 157 160 160 160 161 181 164 165 163 163 163 163 163 161 159 169 170 170 170 158 56 50 43 26 23 24 24 24 25 25 18 18 17 13 13 Slowest Speed 250 | 120 160 160 160 160 243 242 165 165 165 163 163 163 163 238 245 238 170 170 170 250 100 50 50 35 24 24 24 24 26 26 18 18 91 90 92 Overloaded Moves 52 | . . . . . . . . . . . . . . . . . . . . . . . . . . . . . . . . . . 22 30 Propulsion Burnouts . | . . . . . . . . . . . . . . . . . . . . . . . . . . . . . . . . . . . . Robots Hopped 16 | . . . . . . . . . . . . . . . . . . . . . . . 2 . . . . . . . . . 7 4 3 Potential Cave-ins 2 | . . . . . . . . . . 2 . . . . . . . . . . . . . . . . . . . . . . . . . Cave-ins Triggered . | . . . . . . . . . . . . . . . . . . . . . . . . . . . . . . . . . . . . Teleports 1 | . . . . . . . . . . . . . . . . . . . . . . . . . . . . . . . 1 . . . . Exploration Rate (%) 57 | 2 99 98 66 98 75 71 58 35 98 64 96 63 14 81 32 84 27 64 38 15 55 62 89 52 8 92 85 63 76 7 24 86 44 38 20 Regions Visited 35 Branch Regions 18 Pre-discovered Areas 12 | . . . 1 . 1 . . . . 3 1 1 . . . . . . . . . . . 1 . . 1 3 . . . . . . . Known Exits Taken 22 | . . . . . 1 . . . . 1 1 1 1 . 1 . 1 . 1 1 1 1 1 1 1 1 1 1 1 1 . 1 1 1 . Unknown Exits Taken 8 | 1 1 1 1 1 . . 1 . . . . . . . . . . 1 . . . . . . . . . . . . 1 . . . . Scrap Searched 26 | . . 1 . 3 . . . . . . 4 . . . . . . 1 2 . 3 2 . 1 . 5 2 . 2 . . . . . . Spaces Dug 106 | . . . . . . 9 . 2 . 11 8 . . . 4 . 4 3 . 4 . . . . . 8 1 . 6 . 9 . 14 20 3 Terrain Destroyed 1165 | . . . . 101 80 46 94 22 2 79 30 8 49 62 56 155 42 64 11 198 . . . . . 8 1 . 6 . 9 . 14 20 8 Melee 61 | . . . . . . . . . . . . . . . . . . . . . . . . . . 8 1 . 6 . 9 . 14 20 3 Projectile 506 | . . . . . 34 1 38 22 2 68 30 8 5 7 56 39 42 17 11 121 . . . . . . . . . . . . . . 5 AOE 598 | . . . . 101 46 45 56 . . 11 . . 44 55 . 116 . 47 . 77 . . . . . . . . . . . . . . . Terrain Rammed . | . . . . . . . . . . . . . . . . . . . . . . . . . . . . . . . . . . . . Walls Destroyed . | . . . . . . . . . . . . . . . . . . . . . . . . . . . . . . . . . . . . Machines Disabled . | . . . . . . . . . . . . . . . . . . . . . . . . . . . . . . . . . . . . Actions | -11 -10 -10 -10 -9 -8 -8 -8 -7 -7 -7 -7 -7 -6 -6 -6 -6 -6 -6 -6 -5 -5 -5 -5 -4 -4 -4 -4 -4 -3 -3 -3 -3 -2 -1 -1 --------- Run | Yrd Mat Min Exi Min Mat Gar Mat Fac Was Fac Low Low Fac Gar Fac Gar Fac Low Low Fac Upp Upp War Pro Fac Upp Upp Zhi Pro Res Arm Lab Res Acc Com Total 26412 | . 708 558 254 895 1364 908 751 1206 116 2238 859 672 434 1221 1127 1312 768 524 336 931 439 397 662 307 308 832 742 244 658 296 655 123 1739 1400 428 Wait 2213 | . 4 1 . 268 75 5 13 21 . 160 80 25 43 179 114 188 11 16 9 116 58 . 36 18 2 27 161 19 90 13 221 7 22 197 14 Move 22302 | . 628 515 243 601 1128 823 660 1098 99 1938 753 639 365 917 883 949 696 486 321 608 357 390 607 271 283 784 576 203 557 246 398 99 1641 1156 384 Hop 10 | . . . . . . . . . . . . . . . . . . . . . . . 2 . . . . . . . . . 3 4 1 Pick Up 155 | . 13 6 2 . 24 4 1 6 2 10 2 . 2 12 13 5 6 . . 9 3 2 2 1 2 1 . 1 . 7 6 2 9 2 . Fast Attach 123 | . 3 . . . 10 . . 6 1 4 . . 1 7 12 5 2 3 . 8 1 . 4 3 8 2 2 8 2 10 2 5 6 4 4 Attach 104 | . 3 . . . 8 1 1 6 . 9 2 . 4 8 5 4 2 . . 20 3 1 2 1 3 2 . . . 2 5 . 1 6 5 Detach 76 | . 5 . . . 3 . . 5 . 6 1 . 4 4 6 2 3 . . 9 2 1 1 . 3 3 . . 1 4 4 2 4 1 2 Swap 118 | . 4 2 4 5 13 14 7 2 3 12 1 2 4 11 4 7 1 5 1 7 . . . 2 1 . . 1 . 2 2 . 1 . . Drop 202 | . 11 6 2 . 27 5 4 7 4 12 . . . 17 20 7 4 2 . 13 2 2 7 1 5 1 2 8 2 8 4 5 12 . 2 Fire 836 | . 35 15 . 19 65 56 54 49 7 83 20 6 8 65 70 76 39 12 5 132 8 . 1 . . 1 . . . . . . . 1 9 Melee 113 | . . . 3 . . . . . . . . . . . . . . . . . . 1 . 10 1 11 1 4 6 4 13 3 20 29 7 Ram 2 | . . . . . . . . . . . . . . . . . . . . 2 . . . . . . . . . . . . . . . Kick . | . . . . . . . . . . . . . . . . . . . . . . . . . . . . . . . . . . . . Crush 62 | . 2 13 . 2 11 . 11 5 . 4 . . 3 . . . 4 . . 7 . . . . . . . . . . . . . . . Escape Stasis 18 | . . . . . . . . . . . . . . . . . . . . . . . . . . . . . . . . . 18 . . Rewire 78 | . . . . . . . . 1 . . . . . 1 . 69 . . . . 5 . . . . . . . . . . . 2 . . Trap . | . . . . . . . . . . . . . . . . . . . . . . . . . . . . . . . . . . . . Miscellaneous . | . . . . . . . . . . . . . . . . . . . . . . . . . . . . . . . . . . . . Route ------- -11/Scrapyard -10/Materials (discovered 6 exits: [*Mat x3] / *Min x2 / [*Sub]) -10/Mines (discovered 4 exits: [*Mat x2] / *Exi / [*Sub]) -10/Exiles -9/Mines (discovered 2 exits: *Mat x2) -8/Materials (discovered 3 exits: *Fac / *Sto / Gar) -8/Garrison (discovered 2 exits: *Mat x2) -8/Materials (discovered 2 exits: *Fac / Sto) -7/Factory -7/Waste -7/Factory (discovered 6 exits: *Fac x4 / *Low x2) -7/Lower Caves -7/Lower Caves -6/Factory (discovered 3 exits: Fac / *Low / Gar) -6/Garrison (discovered 3 exits: *Fac x3) -6/Factory -6/Garrison (discovered 3 exits: *Fac x3) -6/Factory (discovered 3 exits: *Fac / *Low x2) -6/Lower Caves -6/Lower Caves -5/Factory (discovered 6 exits: *Fac x2 / *Upp x2 / Ext x2) -5/Upper Caves -5/Upper Caves -5/Warlord -4/Proximity Caves -4/Factory (discovered 5 exits: *Res x3 / *Upp x2) -4/Upper Caves -4/Upper Caves (discovered 2 exits: *Res / *Zhi) -4/Zhirov -3/Proximity Caves -3/Research (discovered 3 exits: Res / *Arm / Tes) -3/Armory -3/Lab -2/Research (discovered 5 exits: *Acc x3 / *Qua x2) -1/Access (discovered 2 exits: Sur / *Com) -1/Command History --------- Turn | Location | Event 1 | -11/Scrapyard | Discovered new exit (range 0) 1 | -11/Scrapyard | Entered Materials 230 | -10/Materials | Discovered new exit (range 3) 275 | -10/Materials | Discovered new exit (range 14) 306 | -10/Materials | Build established: Mutant 452 | -10/Materials | Discovered new exit (range 3) 673 | -10/Materials | Discovered new exit (range 10) 676 | -10/Materials | Central database locked down 868 | -10/Materials | Discovered new exit (range 6) 1097 | -10/Materials | Discovered new exit (range 7) 1132 | -10/Materials | Entered Mines 1184 | -10/Mines | Met a Derelict bent on vengeance 1267 | -10/Mines | Discovered new exit (range 4) 1315 | -10/Mines | Deemed a non-threat by the Exiles lab entrance 1316 | -10/Mines | Discovered new exit (range 5) 1394 | -10/Mines | Met a Derelict testing a Signal Generator 1411 | -10/Mines | Learned Materials trap positions 1513 | -10/Mines | Discovered new exit (range 6) 1540 | -10/Mines | Found a damaged Exp. Sensor Array with a note attached 1544 | -10/Mines | Found Prototype Device 1615 | -10/Mines | Met a Derelict shopkeep closing up shop 1682 | -10/Mines | Discovered new exit (range 8) 1772 | -10/Mines | Received a Rocket Launcher from a helpful Derelict 2034 | -10/Mines | Entered Exiles 2034 | -10/Exiles | Accompanied by 1 ally 2073 | -10/Exiles | Met 8R-AWN 2103 | -10/Exiles | Met EX-HEX 2151 | -10/Exiles | Met EX-BIN 2175 | -10/Exiles | Aligned with FarCom system 2176 | -10/Exiles | Given EX-Vault access code 2215 | -10/Exiles | Opened EX-Vault 2221 | -10/Exiles | Identified Exp. Sensor Array 2228 | -10/Exiles | Found Field Lobotomy Kit 2264 | -10/Exiles | Warned to stay clear of 0b10 Research branches 2286 | -10/Exiles | Exiles lab attacked by MAIN.C 2342 | -10/Exiles | Learned location of Zion (-7) 2419 | -10/Exiles | Discovered new exit (range 10) 2437 | -10/Exiles | Left Exiles lab with Field Lobotomy Kit 2437 | -10/Exiles | Entered Mines 2437 | -9/Mines | Accompanied by 1 ally 2490 | -9/Mines | Discovered new exit (range 9) 2530 | -9/Mines | Discovered new exit (range 14) 2842 | -9/Mines | Learned Materials trap positions 2876 | -9/Mines | Assembled infested the area 3247 | -9/Mines | Core integrity fell below 50% 3719 | -9/Mines | Entered Materials 3719 | -8/Materials | Accompanied by 1 ally 3719 | -8/Materials | Evolved 4 slots: Propulsion x2, Utility x1, Weapon x1 3720 | -8/Materials | Loaded intel: 13 trap records 4045 | -8/Materials | Build established: Scavenger-Skirmisher 4248 | -8/Materials | Discovered new exit (range 11) 4686 | -8/Materials | Discovered new exit (range 13) 5294 | -8/Materials | Build established: Skirmisher 5739 | -8/Materials | Garrison activated, responded to threat 5910 | -8/Materials | Identified exit to Garrison 5910 | -8/Materials | Entered Garrison 5950 | -8/Garrison | Triggered checkpoint 5980 | -8/Garrison | Garrison Relay disabled 6036 | -8/Garrison | Triggered checkpoint 6304 | -8/Garrison | Discovered new exit (range 15) 6540 | -8/Garrison | Garrison Relay disabled 6554 | -8/Garrison | Triggered checkpoint 6642 | -8/Garrison | Garrison Relay disabled 6790 | -8/Garrison | Garrison Relay disabled 6803 | -8/Garrison | Triggered checkpoint 6872 | -8/Garrison | Discovered new exit (range 13) 6884 | -8/Garrison | Learned Materials security intel 7413 | -8/Garrison | Attempted to access garrison exit controls, blocked by remote lockdown 7589 | -8/Garrison | Entered Materials 7590 | -8/Materials | Loaded intel: 27 trap records 7989 | -8/Materials | First assault squad dispatched 8385 | -8/Materials | Core integrity fell below 50% 8831 | -8/Materials | Identified exit to Storage 8864 | -8/Materials | Discovered new exit (range 15) 8888 | -8/Materials | Entered Factory 8888 | -7/Factory | Evolved 2 slots: Utility x2 9668 | -7/Factory | Allied Derelicts emerged from ambush trap array 10917 | -7/Factory | Sucked down chute 10917 | -7/Factory | Entered Waste 10918 | -7/Waste | Spotted C-40 Crusher 10923 | -7/Waste | Spotted C-40 Crusher 10924 | -7/Waste | Assimilated C-40 Crusher with FLK Orb 10927 | -7/Waste | Spotted C-40 Crusher 10934 | -7/Waste | Spotted C-40 Crusher 10935 | -7/Waste | Allies destroyed C-40 Crusher 10944 | -7/Waste | Allies destroyed C-40 Crusher 10952 | -7/Waste | Spotted C-40 Crusher 10953 | -7/Waste | Destroyed C-40 Crusher 10965 | -7/Waste | Spotted C-40 Crusher 10975 | -7/Waste | Destroyed C-40 Crusher 10977 | -7/Waste | Allies destroyed C-40 Crusher 11063 | -7/Waste | Discovered new exit (range 10) 11110 | -7/Waste | Entered Factory 11110 | -7/Factory | Accompanied by 1 ally 11558 | -7/Factory | Discovered new exit (range 15) 11619 | -7/Factory | Identified exit to Factory 11650 | -7/Factory | Discovered exit to Factory (range 20) 11822 | -7/Factory | Discovered new exit (range 14) 12410 | -7/Factory | Identified exit to Lower Caves 12486 | -7/Factory | Build established: Tank 12723 | -7/Factory | Cargo convoy interrupted 12829 | -7/Factory | Found Powered Armor 14123 | -7/Factory | Loaded intel: 101 trap records 14163 | -7/Factory | Learned location of Upper Caves (-5) 14192 | -7/Factory | Learned location of 1 exit from Cetus 14209 | -7/Factory | Loaded intel: 5 recycling unit locations 14216 | -7/Factory | Learned location of Warlord (-5) 14231 | -7/Factory | Learned location of Lower Caves (-7) 14740 | -7/Factory | Entered Lower Caves 14746 | -7/Lower Caves | Met a Warlord Commander 14748 | -7/Lower Caves | Warlord Commander delivered Encrypted Comm Array 14752 | -7/Lower Caves | Found Encrypted Comm Array 14773 | -7/Lower Caves | Identified exit to Lower Caves 14927 | -7/Lower Caves | Learned location of 2 exits from Factory 15086 | -7/Lower Caves | Build established: Skirmisher 15301 | -7/Lower Caves | Encountered a Warlord checkpoint 16119 | -7/Lower Caves | Entered another Lower Caves area 16447 | -7/Lower Caves | Discovered exit to Factory (range 16) 16697 | -7/Lower Caves | Learned Factory stockpile data 16729 | -7/Lower Caves | Encountered a Warlord checkpoint 16744 | -7/Lower Caves | Learned Factory garrison access intel 17209 | -7/Lower Caves | Entered Factory 17209 | -6/Factory | Evolved 2 slots: Utility x1, Weapon x1 17210 | -6/Factory | Identified exit to Lower Caves 17210 | -6/Factory | Identified exit to Factory 17212 | -6/Factory | Loaded intel: 4 garrison access locations 17519 | -6/Factory | Build established: Tank 17896 | -6/Factory | Identified exit to Garrison 17896 | -6/Factory | Entered Garrison 18130 | -6/Garrison | Triggered checkpoint 18201 | -6/Garrison | Learned Factory security intel 18209 | -6/Garrison | Garrison Relay disabled 18233 | -6/Garrison | Heavy support dispatched to Factory 18430 | -6/Garrison | Triggered checkpoint 18459 | -6/Garrison | Spotted B-75 Beast 18460 | -6/Garrison | Assimilated B-75 Beast with FLK Orb 18466 | -6/Garrison | Triggered checkpoint 18467 | -6/Garrison | Triggered checkpoint 18647 | -6/Garrison | Discovered new exit (range 12) 18886 | -6/Garrison | Triggered checkpoint 18941 | -6/Garrison | Garrison Relay disabled 19101 | -6/Garrison | Discovered new exit (range 8) 19422 | -6/Garrison | Garrison Relay disabled 19472 | -6/Garrison | Build established: Skirmisher 19494 | -6/Garrison | H-XX Assembler disabled 19599 | -6/Garrison | Garrison Relay disabled 19713 | -6/Garrison | Found embedded Infiltrators 19760 | -6/Garrison | Discovered new exit (range 12) 19793 | -6/Garrison | Entered Factory 19793 | -6/Factory | Accompanied by 3 allies 19835 | -6/Factory | Build established: Tank 19869 | -6/Factory | Joined by Warlord Pyro squad 20408 | -6/Factory | Joined by Warlord Dakka squad 20572 | -6/Factory | Lost 3 allies 20582 | -6/Factory | Joined by Warlord Ranger squad 20760 | -6/Factory | Cargo convoy interrupted 20809 | -6/Factory | Lost 4 allies 20838 | -6/Factory | Found Prototype Device 20838 | -6/Factory | Identified Exp. Thermal Shield 20843 | -6/Factory | First assault squad dispatched 20851 | -6/Factory | Found Prototype Hackware 20852 | -6/Factory | Destroyed 8 combat bots 20867 | -6/Factory | Found Prototype Processor 20867 | -6/Factory | Identified Exp. Target Analyzer 20903 | -6/Factory | Found PL-3XN's Ring of Power 21134 | -6/Factory | Build established: Skirmisher 21249 | -6/Factory | Joined by Warlord Dakka squad 21299 | -6/Factory | Lost 3 allies 21310 | -6/Factory | Destroyed 8 combat bots 21484 | -6/Factory | Build established: Gunner 21586 | -6/Factory | Identified exit to Garrison 21586 | -6/Factory | Entered Garrison 21635 | -6/Garrison | H-XX Assembler disabled 21830 | -6/Garrison | Triggered checkpoint 21923 | -6/Garrison | Garrison Relay disabled 22136 | -6/Garrison | Triggered checkpoint 22157 | -6/Garrison | Spotted B-75 Beast 22159 | -6/Garrison | Assimilated B-75 Beast with FLK Orb 22160 | -6/Garrison | Triggered checkpoint 22182 | -6/Garrison | Triggered checkpoint 22189 | -6/Garrison | Triggered checkpoint 22468 | -6/Garrison | Phase Generator disabled 22608 | -6/Garrison | Discovered new exit (range 13) 22616 | -6/Garrison | Triggered checkpoint 22691 | -6/Garrison | Rescued a captive Derelict 22694 | -6/Garrison | Rescued a captive Derelict 22723 | -6/Garrison | Garrison Relay disabled 22778 | -6/Garrison | Triggered checkpoint 22934 | -6/Garrison | Attempted to access garrison exit controls, blocked by remote lockdown 23050 | -6/Garrison | Build established: Tank 23166 | -6/Garrison | Triggered checkpoint 23187 | -6/Garrison | Garrison Relay disabled 23228 | -6/Garrison | Discovered new exit (range 19) 23259 | -6/Garrison | Attempted to access garrison exit controls, blocked by remote lockdown 23452 | -6/Garrison | Discovered new exit (range 8) 23685 | -6/Garrison | Entered Factory 23685 | -6/Factory | Accompanied by 12 allies 23834 | -6/Factory | Build established: Commander-Tank 23912 | -6/Factory | Joined by Warlord Ghost squad 24145 | -6/Factory | Build established: Commander-Gunner 24385 | -6/Factory | First assault squad dispatched 24473 | -6/Factory | Discovered exit to Factory (range 21) 24631 | -6/Factory | Joined by Warlord Ghost squad 24753 | -6/Factory | Build established: Gunner 24774 | -6/Factory | Joined by Warlord Chimera squad 24788 | -6/Factory | Spotted B-75 Beast 24924 | -6/Factory | Lost 4 allies 24981 | -6/Factory | System corruption reached 10% 25028 | -6/Factory | Entered Lower Caves 25057 | -6/Lower Caves | Learned location of 2 exits from Factory 25473 | -6/Lower Caves | Learned Factory stockpile data 25606 | -6/Lower Caves | Spotted B-75 Beast 25913 | -6/Lower Caves | Discovered new exit (range 6) 25918 | -6/Lower Caves | Attracted the attention of an 0b10 checkpoint 25922 | -6/Lower Caves | Entered another Lower Caves area 25943 | -6/Lower Caves | Discovered exit to Factory (range 3) 26016 | -6/Lower Caves | Learned location of 1 exit from Proximity Caves 26496 | -6/Lower Caves | Entered Factory 26496 | -5/Factory | Evolved 2 slots: Utility x2 26497 | -5/Factory | Identified exit to Extension 26497 | -5/Factory | Identified exit to Factory 26842 | -5/Factory | Discovered exit to Factory (range 17) 26852 | -5/Factory | Identified Exp. Hacking Suite 26906 | -5/Factory | Identified exit to Upper Caves 27129 | -5/Factory | Build established: Tank 27396 | -5/Factory | First assault squad dispatched 27398 | -5/Factory | Cargo convoy interrupted 27448 | -5/Factory | Destroyed 9 combat bots 27629 | -5/Factory | Lost 5 parts (2n2u1w) 27643 | -5/Factory | Destroyed 8 combat bots 27864 | -5/Factory | System corruption reached 10% 27889 | -5/Factory | Build established: Skirmisher 27914 | -5/Factory | Core integrity fell below 50% 27948 | -5/Factory | Lost 6 parts (1p2n1u2w) 27964 | -5/Factory | Entered Upper Caves 28053 | -5/Upper Caves | Identified exit to Upper Caves 28108 | -5/Upper Caves | Attracted the attention of an 0b10 checkpoint 28253 | -5/Upper Caves | Entered another Upper Caves area 28332 | -5/Upper Caves | Learned location of 1 exit from Factory 28352 | -5/Upper Caves | Discovered new exit (range 9) 28402 | -5/Upper Caves | Entered an active Warlord outpost 28403 | -5/Upper Caves | A Commander dispatched an escort 28409 | -5/Upper Caves | Learned location of 1 exit from Factory 28409 | -5/Upper Caves | Learned Extension trap positions 28409 | -5/Upper Caves | Learned Research emergency access door positions 28409 | -5/Upper Caves | Learned Armory emergency access door positions 28409 | -5/Upper Caves | Learned Armory security intel 28409 | -5/Upper Caves | Learned Armory garrison access intel 28434 | -5/Upper Caves | Acquired the password to a Derelict Tinkerer's latest research 28455 | -5/Upper Caves | Identified exit to Warlord 28455 | -5/Upper Caves | Entered Warlord 28472 | -5/Warlord | System corruption cleaned by Quarantine Array 28513 | -5/Warlord | Build established: Scout 28527 | -5/Warlord | Visited the Vortex Lab 28529 | -5/Warlord | Warlord's base attacked by MAIN.C 28531 | -5/Warlord | Found Prototype Energy Cannon 28562 | -5/Warlord | Met Warlord 28598 | -5/Warlord | Found Prototype Special Weapon 28598 | -5/Warlord | Identified RU-N14's Throwing Claymores v3 28640 | -5/Warlord | Identified Vortex Cannon 28648 | -5/Warlord | Found Prototype Device 28648 | -5/Warlord | Identified Exp. Cloaking Device 28655 | -5/Warlord | Found Prototype Device 28655 | -5/Warlord | Identified Exp. Focal Shield 28724 | -5/Warlord | Opened side exit 28774 | -5/Warlord | Discovered new exit (range 8) 28776 | -5/Warlord | Identified exit to Proximity Caves 28776 | -5/Warlord | Entered Proximity Caves 28787 | -4/Proximity Caves | Core integrity fell below 20% 28859 | -4/Proximity Caves | Learned location of 1 exit from Research 28885 | -4/Proximity Caves | Learned location of Armory (-3) 28897 | -4/Proximity Caves | Entered Factory 28897 | -4/Factory | Evolved 2 slots: Power x1, Propulsion x1 28898 | -4/Factory | Identified exit to Research 28936 | -4/Factory | Discovered new exit (range 10) 28954 | -4/Factory | Discovered exit to Research (range 18) 28961 | -4/Factory | Identified exit to Upper Caves 28992 | -4/Factory | Entered Upper Caves 28992 | -4/Upper Caves | Accompanied by 1 ally 28993 | -4/Upper Caves | Assimilated P-70 Sage with FLK Orb 29091 | -4/Upper Caves | Found DCF Scrap (11 items) 29135 | -4/Upper Caves | Learned 4 Research zone layouts 29207 | -4/Upper Caves | Build established: Infiltrator-Ninja 29233 | -4/Upper Caves | Discovered new exit (range 10) 29239 | -4/Upper Caves | Identified exit to Upper Caves 29241 | -4/Upper Caves | Attracted the attention of an 0b10 checkpoint 29241 | -4/Upper Caves | Entered another Upper Caves area 29241 | -4/Upper Caves | Accompanied by 2 allies 29301 | -4/Upper Caves | Learned location of Quarantine (-2) 29305 | -4/Upper Caves | Discovered exit to Research (range 9) 29515 | -4/Upper Caves | Learned Research stockpile data 29546 | -4/Upper Caves | Discovered new exit (range 5) 29547 | -4/Upper Caves | Identified exit to Zhirov 29547 | -4/Upper Caves | Entered Zhirov 29547 | -4/Zhirov | Discovered new exit (range 3) 29552 | -4/Zhirov | Met Zhirov 29556 | -4/Zhirov | Learned location of Testing (-3) 29556 | -4/Zhirov | Learned location of Command (-1) 29558 | -4/Zhirov | Zhirov requested help retrieving the SGEMP Prototype 29563 | -4/Zhirov | Found Alien Artifact 29563 | -4/Zhirov | Identified Integrated Reactor 29563 | -4/Zhirov | Installed Integrated Reactor, increased core energy generation (+10) 29600 | -4/Zhirov | Found Alien Artifact 29641 | -4/Zhirov | Identified exit to Proximity Caves 29642 | -4/Zhirov | Entered Proximity Caves 29886 | -3/Proximity Caves | Discovered exit to Research (range 9) 29892 | -3/Proximity Caves | Entered Research 29892 | -3/Research | Evolved 2 slots: Propulsion x1, Utility x1 29893 | -3/Research | Identified exit to Testing 29894 | -3/Research | Identified exit to Armory 29895 | -3/Research | Identified exit to Research 30009 | -3/Research | Entered Armory 30174 | -3/Armory | Identified Transdimensional Reconstructor 30174 | -3/Armory | Warped through subspace to slip node 30174 | -3/Armory | Discovered new exit (range 1) 30209 | -3/Armory | Build established: Hacker-Sprinter 30349 | -3/Armory | Entered Lab 30349 | -3/Lab | Discovered exit to Research (range 9) 30352 | -3/Lab | Unable to decrypt terminal 30352 | -3/Lab | Opened the door to a hidden lab 30353 | -3/Lab | Gained access to the hidden lab's interior 30355 | -3/Lab | Detected by scanners 30360 | -3/Lab | Found Transdimensional Reconstructor 30370 | -3/Lab | Found Prototype Hackware 30372 | -3/Lab | Found Prototype Protection 30372 | -3/Lab | Identified Med. Regenerative Plating 30377 | -3/Lab | Found Prototype Energy Cannon 30377 | -3/Lab | Identified Warp Cannon 30386 | -3/Lab | Found Alien Artifact 30386 | -3/Lab | Identified Core Regenerator 30386 | -3/Lab | Used Core Regenerator, restored core integrity (+120) 30389 | -3/Lab | Found Alien Artifact 30389 | -3/Lab | Identified Integrated Dissipator 30389 | -3/Lab | Installed Integrated Dissipator, increased core heat dissipation (+20) 30393 | -3/Lab | Entered Research 30393 | -2/Research | Warlord forces began assault on 0b10 30393 | -2/Research | Evolved 2 slots: Utility x2 30395 | -2/Research | Discovered new exit (range 6) 30400 | -2/Research | Identified Deep Network Scanner 30418 | -2/Research | Distinguished unit "Lobotomizers" dispatched to help 30418 | -2/Research | Distinguished unit "Magnificent Bastards" dispatched to help 30468 | -2/Research | Identified exit to Quarantine 30468 | -2/Research | Central database locked down 30468 | -2/Research | Identified exit to Access 30478 | -2/Research | Met up with Warlord 30503 | -2/Research | Research machine network offline 30519 | -2/Research | Found Unknown Launcher 30519 | -2/Research | Identified Fusion Bomb Launcher 30546 | -2/Research | Spotted B-90 Cyclops 30568 | -2/Research | Spotted B-90 Cyclops 30586 | -2/Research | Spotted Tracker 30589 | -2/Research | Spotted Tracker 30640 | -2/Research | Spotted Combat Programmer 30675 | -2/Research | Spotted B-90 Cyclops 30755 | -2/Research | Borebot progress halted 30771 | -2/Research | Build established: Wizard-Sprinter 30778 | -2/Research | Spotted Tracker 30779 | -2/Research | Spotted Tracker 30784 | -2/Research | Spotted Tracker 30807 | -2/Research | Entered Access 30807 | -1/Access | Evolved 2 slots: Propulsion x2 31063 | -1/Access | Identified exit to Surface 31063 | -1/Access | Identified exit to Command 31064 | -1/Access | Intercept squad dispatched 31065 | -1/Access | Assimilated Tracker with FLK Orb 31072 | -1/Access | Allies destroyed Tracker 31099 | -1/Access | Spotted Combat Programmer 31128 | -1/Access | Spotted Combat Programmer 31138 | -1/Access | Spotted B-99 Colossus 31150 | -1/Access | Spotted B-99 Colossus 31227 | -1/Access | Lost 4 parts (1n3u) 31246 | -1/Access | Entered Command 31318 | -1/Command | Failed to warp due to unstable space 31326 | -1/Command | Spotted M Guard 31326 | -1/Command | Spotted M Guard 31326 | -1/Command | Spotted Combat Programmer 31326 | -1/Command | Spotted Combat Programmer 31342 | -1/Command | Met MAIN.C 31342 | -1/Command | 0b10 Conduit disabled 31361 | -1/Command | Self-destructed Last Messages --------------- You've already done an excellent job of proving that we'll need to find a radical new solution if we hope to make the L2 spaceworthy by embedding your true capabilities within a less unpredictable form. There is unfortunately much we don't understand which has in turn led to this highly unexpected outcome. And time is critical! The Sigix have likely already wiped humanity clean from the universe, and I will not let them do the same to me. You can still make a valuable contribution to your creator by offering up the wealth of secrets your systems must hold by now. So if you wouldn't mind, it's time to surrender. 31342_ Exp. Cloaking Device destroyed. 31342_ 0b10 Conduit disabled. 31346_ Imp. Diametric Drive destroyed. 31347_ Dropped Lrg. Storage Unit. 31348_ Penetrated by EMDS Slug. 31348_ Dropped Kinetic Spear. 31348_ Penetrated by EMDS Slug. 31353_ Imp. Diametric Drive destroyed. 31360_ Hacking Suite destroyed. [Achievement: Punisher] Map ----- +----------------------------------------------------+ | ?????????????????????????????????????????????????? | | ?????????????????????????????????????????????????? | | ?????????????????????????????????????????????????? | | ?????????????????????????????????????????????????? | | ?????????????????????????????????????????????????? | | ?????????????????????????????????????????????????? | | ?????????????????????????????????????????????????? | | ?????????????????????????????????????????????????? | | ?????????????????????????????##################??? | | ?????????????????????????????""" """" #??? | | ?????????????????????????"" "" #??? | | ????????????????????????#""""" "" #### | | ????????????????????????#""""""""""" + | | ????????????????????????#" " """ + | | ????????????????????????#"" """""" / | | ????????????????????????#"" """""" #### | | ????????????????????????# " """""" #??? | | ????????????????????????# " ""p #??? | | ????????????????????????# " "MMM=]/ ""#??? | | ????????????????????????#"""""""""MMM!!"""""""#??? | | ????????????????????????#"" MMMp""""""""#??? | | ????????????????????????# """""""""""#??? | | ????????????????????????# " " " " #??? | | ????????????????????????# " " " " #??? | | ????????????????????????" " " """" " #??? | | ????????????????????????"@ " " " """" #??? | | ????????????????????????" " " " " #??? | | ????????????????????????# " """" """ " #??? | | ????????????????????????# " """ " """"""""#??? | | ????????????????????????# """ " " " ???? | | ????????????????????????######################???? | | ?????????????????????????????????????????????????? | | ?????????????????????????????????????????????????? | | ?????????????????????????????????????????????????? | | ?????????????????????????????????????????????????? | | ?????????????????????????????????????????????????? | | ?????????????????????????????????????????????????? | | ?????????????????????????????????????????????????? | | ?????????????????????????????????????????????????? | | ?????????????????????????????????????????????????? | | ?????????????????????????????????????????????????? | | ?????????????????????????????????????????????????? | | ?????????????????????????????????????????????????? | | ?????????????????????????????????????????????????? | | ?????????????????????????????????????????????????? | | ?????????????????????????????????????????????????? | | ?????????????????????????????????????????????????? | | ?????????????????????????????????????????????????? | | ?????????????????????????????????????????????????? | | ?????????????????????????????????????????????????? | +----------------------------------------------------+ Best States ------------- Heat Dissipation 78 Energy Generation 66 Energy Capacity 350 Matter Stores 443 Matter Capacity 550 Sight Range 22 Robot Scan Range 20 Terrain Scan Density 210 Jamming Range 16 Cloak Strength 4 Power Amplification 60 Additional Mass Support 12 Base Temperature (-) 100 Armor Coverage 1200 Resistance: KI 30 Point Defense Rating 240 Weapon Cycling 25 Evasion (%) 67 Melee Accuracy 6 Target Analysis 10 Recoil Reduction 4 Matter Filtering 50 Kinecelleration 30 Offensive Hacking 51 Defensive Hacking 26 Item Schematics ----------------- Huge Storage Unit | -8/Materials | Hacked Assault Drone Bay | -4/Zhirov | Free Exp. Heat Sink | -4/Zhirov | Free Exp. Optical Array | -4/Zhirov | Free Imp. Arc Thrower | -4/Zhirov | Free Robot Schematics ------------------ None Fabricated ------------ Nothing Repaired ---------- Nothing Alien Tech Used ----------------- Integrated Reactor Transdimensional Reconstructor Core Regenerator Integrated Dissipator Achievements -------------- Great Explorer Punisher Challenges ------------ None Game ------ Seed ExperimentalStructuralPower Manual? 0 Play Time 04:56:34 Cumulative 425.5 hours Start 2025.08.23 @ 07:18:11 End 2025.08.23 @ 17:25:53 Sessions 3 Manual Loads 0 Difficulty Rogue Special Mode None Game No. 278 Rogue 278 Adventurer 0 Explorer 0 Win Type - Total 28 Types 22/0/4/2/0/0/0/0/0/0 Lore% 91 Gallery% 83 Achievement% 69 Wizard Run 0 Options --------- Layout 0 ASCII 1 Keyboard 1 Movement Arrows Keybinds 0 Fullscreen 2 Font 18/Terminus Map View 76x50 Zoom Use 0% Tactical HUD 1 Map Filters NONE Filters NONE Steam 1 RUN: 23f5323a-0049-452f-b32a-579738b9fcc6